Cogmind - Beta 16 @@@ ROGUE MODE // 2025.11.11 @ 13:10:23 Player: TapeIsSticky Result: Defending 0bPrime! Performance ------------- Evolutions (8) 4000 Regions Visited (32) 6400 Robots Destroyed (242) 1210 Value Destroyed (9476) 9476 Prototype IDs (125) 2500 Alien Tech Used (3) 600 Bonus (38948) 38948 TOTAL SCORE: 63134 Bonus ------- High Alert Combat Kills 2294 Follower Combat Kills 783 Forged Quantum Companion 1000 Registered with UFD 300 Met Optimus in HQ 500 Met Data Miner 300 Met Zhirov 300 Met Warlord at Base 500 MAIN.C Attacked Warlord 500 Used Core Reset Matrix 3000 Scanned by Researcher 500 Destroyed Superfortress 15000 Met Optimus at Protoforge 1000 Executed Drillbomb Mission 10000 Win 3000 Friendly Fire -29 Cogmind --------- Core Integrity 322/1450 Matter 300/300 Energy 290/290 System Corruption 9% Temperature Cool (0) Movement Flying (28) Location 0bPrime Parts ------- > --- POWER (2) -------- Light Antimatter Reactor Concept Zero-point Core > --- PROPULSION (8) --- Impulse Thruster Array Impulse Thruster Array Impulse Thruster Array Experimental Biomechanical Wings Concept Fieldthrust Drive > --- UTILITY (10) ----- 2N-1CE's Frost Array Concept Antigrav Storage Unit Plexus Tether Experimental Optical Array Advanced Signal Interpreter Experimental Melee Analysis Suite Concept Weapon Articulator Experimental Core Analyzer Experimental Armor Integrity Analyzer > --- WEAPON (3) ------- Quantum Companion Plasma Lance > --- INVENTORY (25) --- Transdimensional Reconstructor Concept Plasma Driver Concept EMP Blanket Launcher Sigix Broadsword Peak State ------------ > --- POWER ------------ Hybrid Graviton Reactor Concept Zero-point Core > --- PROPULSION ------- Experimental Biomechanical Wings Experimental Biomechanical Wings Experimental Biomechanical Wings Experimental Surge Thruster Experimental Surge Thruster Experimental Surge Thruster Experimental Surge Thruster Concept Fieldthrust Drive > --- UTILITY ---------- Concept Antigrav Storage Unit Experimental Optical Array Experimental Melee Analysis Suite Concept Weapon Articulator Experimental Core Analyzer Experimental Armor Integrity Analyzer Femtoactuators Concept Reaction Jets Concept RG22 Armor Concept RG22 Armor > --- WEAPON ----------- Quantum Companion Sigix Broadsword > --- INVENTORY -------- 2N-1CE's Frost Array Crosscalibrator Transdimensional Reconstructor Concept EMP Blanket Launcher Precision Rocket Launcher [Rating: 260] Favorites ----------- Power Improved Ion Engine Engine Improved Ion Engine Power Core Concept Zero-point Core Reactor Compact Particle Reactor Propulsion Light Treads Treads Light Treads Wheel Armored Huge Wheel Hover Unit Improved Linear Gravjet Flight Unit Improved VTOL Module Utility Huge Storage Unit Device Improved Heat Sink Storage Huge Storage Unit Processor Advanced Visual Processing Unit Hackware Improved Hacking Suite Protection Layered Light Armor Plating Weapon Improved Light Cannon Energy Gun EM Shotgun Energy Cannon Concept Plasma Driver Ballistic Gun Enhanced Autogun Ballistic Cannon Improved Light Cannon Launcher Concept EMP Blanket Launcher Special Weapon Remote Datajack Slashing Weapon Companion Sword Piercing Weapon Plasma Lance Build | -11 -10 -10 -9 -9 -8 -8 -8 -8 -6 -6 -6 -6 -5 -5 -5 -5 -5 -5 -5 -4 -4 -4 -4 -4 -4 -4 -3 -3 -3 -2 -2 -2 ------- Run | Yrd Mat Min Mat Min Mat Sto Rec Scr Fac Low Low Dat Pro Fac Was Fac Upp Upp Zhi Pro Fac Was Fac Upp Upp War Pro Res Qua Res Tes Frg Slots Evolved 16 | . . . 2 . 2 . . . 4 . . . . 2 . . . . . . 2 . . . . . . 2 . 2 . . Power 1 | . . . . . . . . . . . . . . . . . . . . . . . . . . . . 1 . . . . Propulsion 6 | . . . 1 . . . . . 2 . . . . 1 . . . . . . 1 . . . . . . 1 . . . . Utility 8 | . . . 1 . 1 . . . 2 . . . . 1 . . . . . . 1 . . . . . . . . 2 . . Weapon 1 | . . . . . 1 . . . . . . . . . . . . . . . . . . . . . . . . . . . Parts Attached 195 | 7 8 7 14 . 22 23 1 6 14 1 . . . 4 1 3 1 . 6 . 3 1 1 . . 10 . 2 3 . 13 44 Power 16 | 1 2 . 1 . 2 1 . 1 1 . . . . . . . . . 1 . . . . . . . . 1 1 . . 4 Engine 6 | 1 2 . 1 . . 1 . 1 . . . . . . . . . . . . . . . . . . . . . . . . Core 4 | . . . . . 2 . . . . . . . . . . . . . . . . . . . . . . 1 . . . 1 Reactor 6 | . . . . . . . . . 1 . . . . . . . . . 1 . . . . . . . . . 1 . . 3 Propulsion 65 | 2 . 2 5 . 11 12 . 2 5 . . . . . . . . . 3 . 1 1 . . . 2 . 1 1 . 1 16 Treads 30 | 2 . 2 5 . 10 11 . . . . . . . . . . . . . . . . . . . . . . . . . . Leg . | . . . . . . . . . . . . . . . . . . . . . . . . . . . . . . . . . Wheel 2 | . . . . . . . . 2 . . . . . . . . . . . . . . . . . . . . . . . . Hover 2 | . . . . . . . . . . . . . . . . . . . . . 1 1 . . . . . . . . . . Flight 31 | . . . . . 1 1 . . 5 . . . . . . . . . 3 . . . . . . 2 . 1 1 . 1 16 Utility 72 | 2 4 2 3 . 6 1 . 2 7 1 . . . 4 1 2 1 . 2 . 2 . 1 . . 4 . . . . 8 19 Device 22 | 1 2 2 . . 3 . . . 3 . . . . 1 1 . . . . . . . 1 . . 2 . . . . 1 5 Storage 8 | 1 2 . 1 . . . . . . . . . . . . . . . 1 . . . . . . . . . . . 1 2 Processor 19 | . . . 1 . 2 . . 2 1 . . . . . . . . . . . 1 . . . . . . . . . 4 8 Hackware 11 | . . . . . . . . . 3 . . . . 2 . 2 1 . . . . . . . . 1 . . . . 2 . Protection 12 | . . . 1 . 1 1 . . . 1 . . . 1 . . . . 1 . 1 . . . . 1 . . . . . 4 Artifact . | . . . . . . . . . . . . . . . . . . . . . . . . . . . . . . . . . Weapon 42 | 2 2 3 5 . 3 9 1 1 1 . . . . . . 1 . . . . . . . . . 4 . . 1 . 4 5 Energy Gun 4 | . . 3 . . . . . . . . . . . . . . . . . . . . . . . 1 . . . . . . Energy Cannon 2 | . . . . . . . . . . . . . . . . . . . . . . . . . . . . . . . 1 1 Ballistic Gun 11 | 2 1 . 1 . . 6 1 . . . . . . . . . . . . . . . . . . . . . . . . . Ballistic Cannon 10 | . . . 3 . 3 1 . . . . . . . . . . . . . . . . . . . 1 . . . . 1 1 Launcher 7 | . 1 . 1 . . 2 . . . . . . . . . . . . . . . . . . . 1 . . . . . 2 Special Weapon 1 | . . . . . . . . . 1 . . . . . . . . . . . . . . . . . . . . . . . Impact Weapon . | . . . . . . . . . . . . . . . . . . . . . . . . . . . . . . . . . Slashing Weapon 6 | . . . . . . . . 1 . . . . . . . 1 . . . . . . . . . 1 . . 1 . 2 . Piercing Weapon 1 | . . . . . . . . . . . . . . . . . . . . . . . . . . . . . . . . 1 Special Melee Weapon . | . . . . . . . . . . . . . . . . . . . . . . . . . . . . . . . . . Unidentified Prototypes 31 | . . . . . 1 4 . 1 . . . . . 1 . . . . 5 . . . . . . 9 . . 2 . 5 3 Parts Lost 32 | . 3 3 5 . 3 4 1 . . . . . . . . . . . . . 1 . . . . . . . . 1 . 11 Power 3 | . 1 . . . . 1 . . . . . . . . . . . . . . . . . . . . . . . . . 1 Propulsion 11 | . . 1 3 . 1 2 . . . . . . . . . . . . . . . . . . . . . . . . . 4 Utility 13 | . 1 1 1 . 1 1 . . . . . . . . . . . . . . 1 . . . . . . . . 1 . 6 Weapon 5 | . 1 1 1 . 1 . 1 . . . . . . . . . . . . . . . . . . . . . . . . . Highest Loss Streak 2 | . 2 2 2 . 2 2 1 . . . . . . . . . . . . . 1 . . . . . . . . 1 . 2 To Critical Strikes . | . . . . . . . . . . . . . . . . . . . . . . . . . . . . . . . . . Average Backups 14 | 2 15 23 24 25 24 24 23 21 4 3 4 4 4 5 5 5 5 5 5 5 5 5 5 5 5 5 5 4 4 5 4 4 Power . | . 1 2 1 1 1 . . . . . . . . 1 1 1 1 1 1 1 1 1 1 1 1 1 1 . . 1 . . Propulsion 5 | . 4 5 6 8 8 10 11 10 . . . . . . . . . . . 1 1 1 1 1 1 1 1 1 . . . . Utility 3 | . 3 4 5 5 5 4 4 6 2 3 3 3 3 3 3 3 3 3 1 1 1 1 1 1 1 1 1 1 1 1 1 . Weapon 5 | . 6 11 10 11 9 9 7 4 1 . . 1 1 1 1 1 1 1 1 1 1 1 1 1 1 1 1 1 1 1 1 2 Tool/Special . | . . . . . . . . . . . . . . . . . . . . . . . . . . . . . . . . . Unused Backups 44 | . . 1 9 . 9 6 3 8 2 . . . . . . . . . 1 . . . . . . . . . . . . 5 Power 1 | . . . . . . . . . 1 . . . . . . . . . . . . . . . . . . . . . . . Propulsion 13 | . . . 2 . 3 3 . 2 1 . . . . . . . . . . . . . . . . . . . . . . 2 Utility 9 | . . 1 1 . 2 . . 3 . . . . . . . . . . 1 . . . . . . . . . . . . 1 Weapon 20 | . . . 6 . 4 3 3 3 . . . . . . . . . . . . . . . . . . . . . . . 1 Tool/Special 1 | . . . . . . . . . . . . . . . . . . . . . . . . . . . . . . . . 1 Average Slot Usage (%) 90 | . 99 99 97 100 99 99 98 73 90 93 93 93 93 87 88 88 88 88 91 94 86 94 94 94 94 94 94 93 94 81 88 82 Engine 5 | . 13 14 11 11 . 7 9 7 3 . . . . . . . . . . . . . . . . . . . . . . . Core 1 | . . . . . 8 1 . . . . . . . . . . . . . . . . . . . . . 4 4 4 2 2 Reactor 2 | . . . . . . . . . 2 6 6 6 6 5 5 5 5 5 5 5 5 5 5 5 5 5 5 4 3 4 5 4 Treads 15 | . 27 28 32 33 26 27 27 20 . . . . . . . . . . . . . . . . . . . . . . . . Flight 12 | . . . . . . . . . 32 33 33 33 33 29 29 29 29 29 33 35 31 34 36 36 36 35 36 36 37 30 30 27 Device 10 | . 13 13 7 . 16 10 9 7 12 13 13 13 13 11 11 11 11 11 11 11 8 5 9 10 10 10 10 9 9 7 4 10 Storage 6 | . 14 14 11 11 9 9 9 8 . . . . . . . . . . . . . . . . . . . . . . . 1 Processor 10 | . . . 9 11 9 9 9 9 5 6 6 6 6 5 5 5 5 5 5 5 7 10 10 10 10 10 10 9 9 8 16 21 Hackware 3 | . . . . . . . . . 13 13 13 13 13 16 17 17 17 17 17 17 15 15 15 15 15 15 15 14 14 13 15 1 Protection 4 | . . . 3 11 1 7 9 7 5 6 6 6 6 4 5 5 5 5 4 5 5 10 5 5 5 5 5 4 4 4 3 2 Ballistic Gun 6 | . 27 24 4 . . 24 25 . . . . . . . . . . . . . . . . . . . . . . . . . Ballistic Cannon 4 | . . . 17 22 26 2 . . . . . . . . . . . . . . . . . . . . . . . . . . Slashing Weapon 3 | . . . . . . . . 7 6 6 6 6 6 5 5 5 5 5 5 5 5 5 5 5 5 5 5 4 8 8 7 6 Peak Build Rating 260 | 7 11 16 22 21 30 42 40 36 63 68 64 62 62 68 69 75 75 73 92 90 102 104 101 101 101 132 118 131 166 166 193 260 Average Rating 76 | 5 8 12 19 21 26 36 39 32 58 63 62 62 61 64 68 71 73 73 85 90 92 100 100 101 101 112 118 129 160 165 185 213 On Entrance 73 | . 7 11 15 21 21 25 40 29 28 63 62 62 62 62 65 69 72 73 73 90 90 102 100 101 101 101 118 118 131 166 159 192 Avg Prop Armor Cover (%) 2 | . . . . . . . . 26 1 . . . . . . . . . 2 2 3 3 1 1 1 1 1 2 1 . . 5 Naked Turns . | . . . . . . . . . . . . . . . . . . . . . . . . . . . . . . . . . Heaviest Build 109 | 13 91 94 104 104 109 104 101 96 25 33 29 24 24 24 25 25 25 25 25 23 29 29 31 31 31 33 31 36 41 41 52 64 Greatest Support 71 | 40 40 40 60 60 60 66 66 66 34 25 25 25 25 37 25 25 25 25 33 42 42 38 38 33 33 52 57 42 54 54 71 71 Greatest Overweight (x) 9 | . 2 2 2 1 2 2 1 3 . 1 1 . . . . . . . . . 9 . . . . . . . 1 . . 1 Average Overweight (x) . | . 1 2 1 1 1 1 1 1 . . . . . . . . . . . . . . . . . . . . . . . . Largest Inventory Capacity 25 | 8 25 25 25 25 25 25 25 25 25 5 5 5 5 5 5 5 5 5 5 5 5 5 5 5 5 5 5 5 5 5 5 25 Average Capacity 18 | 7 22 25 25 25 25 25 25 24 5 5 5 5 5 5 5 5 5 5 5 5 5 5 5 5 5 5 5 5 5 5 5 13 Most Carried 25 | 4 23 25 25 25 25 25 25 25 17 5 5 5 5 5 5 5 5 5 5 5 5 5 5 5 5 5 5 4 5 5 5 25 Average Carried 16 | 2 15 23 24 25 24 24 23 21 5 4 5 5 4 5 5 5 5 5 4 5 5 4 5 5 5 5 5 4 4 5 4 11 Final Capacity 25 | 8 25 25 25 25 25 25 25 25 5 5 5 5 5 5 5 5 5 5 5 5 5 5 5 5 5 5 5 5 5 5 5 25 Final Carried 25 | 4 23 22 25 25 24 25 25 17 5 5 5 5 5 5 5 5 5 5 5 5 5 5 5 5 5 5 5 4 5 5 5 5 Class Distribution -------------------- 16% | Mutant 14% | Scavenger-Sprinter 13% | Commander-Mutant 11% | Tank 10% | Hacker-Sprinter 10% | Hacker-Scout 10% | Scavenger-Mutant 7% | Skirmisher Dominant Class ---------------- Mutant | -10/Materials Mutant | -10/Mines Scavenger-Mutant | -9/Materials Scavenger-Mutant | -9/Mines Skirmisher | -8/Materials Tank | -8/Storage Tank | -8/Recycling Commander-Mutant | -8/Scraptown Hacker-Sprinter | -6/Factory Hacker-Scout | -6/Lower Caves Hacker-Scout | -6/Lower Caves Hacker-Scout | -6/Data Miner Hacker-Scout | -5/Proximity Caves Hacker-Scout | -5/Factory Hacker-Scout | -5/Waste Hacker-Scout | -5/Factory Hacker-Scout | -5/Upper Caves Hacker-Scout | -5/Upper Caves Hacker-Scout | -5/Zhirov Hacker-Scout | -4/Proximity Caves Hacker-Scout | -4/Factory Hacker-Sprinter | -4/Waste Hacker-Sprinter | -4/Factory Hacker-Sprinter | -4/Upper Caves Hacker-Sprinter | -4/Upper Caves Hacker-Sprinter | -4/Warlord Hacker-Sprinter | -3/Proximity Caves Hacker-Sprinter | -3/Research Hacker-Sprinter | -3/Quarantine Hacker-Sprinter | -2/Research Hacker-Sprinter | -2/Testing Scavenger-Sprinter | -2/Protoforge Resources | -11 -10 -10 -9 -9 -8 -8 -8 -8 -6 -6 -6 -6 -5 -5 -5 -5 -5 -5 -5 -4 -4 -4 -4 -4 -4 -4 -3 -3 -3 -2 -2 -2 ----------- Run | Yrd Mat Min Mat Min Mat Sto Rec Scr Fac Low Low Dat Pro Fac Was Fac Upp Upp Zhi Pro Fac Was Fac Upp Upp War Pro Res Qua Res Tes Frg Matter Collected 7542 | 348 660 327 973 72 853 1314 317 83 160 50 5 . 95 . . 115 45 . 85 20 57 38 20 . 15 157 . . . . 406 1327 Remotely . | . . . . . . . . . . . . . . . . . . . . . . . . . . . . . . . . . Salvage Created 11315 | 205 648 40 951 137 875 1524 572 . 273 . . . . . . 147 . . 327 . 283 . 210 56 365 . . . 37 . 445 4220 Parts 567 | 16 52 1 59 8 55 101 24 . 10 . . . . . . 7 . . 2 . 15 . 10 5 6 . . . 1 . 28 167 Haulers Intercepted 20 | . 2 . 4 . 4 5 . . 2 . . . . . . 1 . . . . 1 . 1 . . . . . . . . . Recyclers Shooed 4 | . 1 . . . 2 . 1 . . . . . . . . . . . . . . . . . . . . . . . . . Parts Field Recycled . | . . . . . . . . . . . . . . . . . . . . . . . . . . . . . . . . . Retrieved Matter . | . . . . . . . . . . . . . . . . . . . . . . . . . . . . . . . . . Parts Self-Destructed 58 | . . . . . . . . . . . 4 . 32 . . . 1 . . . . . . 21 . . . . . . . . Prevented 3 | . . . . . . . . . . . . . . . . . . . . . . . . 3 . . . . . . . . Parts Restored 2 | . . . . . . . . . . . . . . . . . . . . . . . . . . . . . . . . 2 Faulty 2 | . . . . . . . . . . . . . . . . . . . . . . . . . . . . . . . . 2 Kills | -11 -10 -10 -9 -9 -8 -8 -8 -8 -6 -6 -6 -6 -5 -5 -5 -5 -5 -5 -5 -4 -4 -4 -4 -4 -4 -4 -3 -3 -3 -2 -2 -2 ------- Run | Yrd Mat Min Mat Min Mat Sto Rec Scr Fac Low Low Dat Pro Fac Was Fac Upp Upp Zhi Pro Fac Was Fac Upp Upp War Pro Res Qua Res Tes Frg Combat Hostiles Destroyed 158 | . 13 3 24 3 22 25 8 . . . . . . . . . . . . . . . 1 . . . . . . . 1 58 Melee 40 | . . . . . . . . . . . . . . . . . . . . . . . 1 . . . . . . . 1 38 Guns 47 | . 11 3 3 . . 22 8 . . . . . . . . . . . . . . . . . . . . . . . . . Cannons 55 | . . . 21 3 22 3 . . . . . . . . . . . . . . . . . . . . . . . . . 6 AOE 11 | . 2 . . . . . . . . . . . . . . . . . . . . . . . . . . . . . . 9 Classes Destroyed 27 | 2 6 2 1 . 2 4 1 . . . . . . . . . . . . . . . . 1 1 . . . . . 1 6 Worker 15 | . 1 . 2 1 . 4 . . 2 . . . . . . 1 . . . . 2 . 1 . . . . . . . 1 . Builder 3 | . 3 . . . . . . . . . . . . . . . . . . . . . . . . . . . . . . . Tunneler 9 | 6 . 1 . 1 1 . . . . . . . . . . . . . . . . . . . . . . . . . . . Hauler 20 | . 2 . 4 . 4 5 . . 2 . . . . . . 1 . . . . 1 . 1 . . . . . . . . . Recycler 10 | 1 1 . 1 1 1 . 3 . . . . . . . . . . . . . 1 . . . . . . . . . 1 . Carrier 1 | . . . . . . . . . . . . . . . . . . . . . . . . . . . . . . . . 1 Minesweeper 2 | . . . . . . . . . . . . . . . . . . . . . . . . 2 . . . . . . . . Mechanic 3 | . . . . . . . . . . . . . . . . . . . . . . . . . . . . . . . . 3 Operator 5 | . . . . . . 1 . . . . . . . . . . . . . . 1 . . . . . . . . . 2 1 Drone 17 | . . . . . . . . . . . . . . . . . . . . . . . . . . . . . . . . 17 Watcher 18 | . 2 . 4 . 1 1 . . . . . . . . . 1 . . . . 1 . . . . . . . 1 . 3 4 Swarmer 16 | . 3 . 7 . 6 . . . . . . . . . . . . . . . . . . . . . . . . . . . Grunt 44 | . 10 . 9 3 6 5 2 . . . . . . . . . . . . . . . . . . . . . . . . 9 Brawler 3 | . . . . . . 1 . . . . . . . . . . . . . . . . . . . . . . . . . 2 Duelist 3 | . . . . . . 1 1 . . . . . . . . . . . . . . . . . . . . . . . . 1 Protector 2 | . . . . . . 1 . . . . . . . . . . . . . . . . . . . . . . . . . 1 Researcher 4 | . . . . . . . . . . . . . . . . . . . . . . . . . . . . . . . 1 3 Sentry 43 | . . . 8 . 7 13 3 . . . . . . . . . . . . . . . 1 . . . . . . . . 11 Demolisher 3 | . . 1 . . . 2 . . . . . . . . . . . . . . . . . . . . . . . . . . Specialist 2 | . . . . . 2 . . . . . . . . . . . . . . . . . . . . . . . . . . . Hunter 5 | . . . . . 1 2 . . . . . . . . . . . . . . . . . . . . . . . . . 2 Programmer 4 | . . . . . . . 2 . . . . . . . . . . . . . . . . . . . . . . . . 2 Hotshot 6 | . . . . . . . . . . . . . . . . . . . . . . . . . . . . . . . . 6 Decapitator 4 | . . . . . . . . . . . . . . . . . . . . . . . . . . . . . . . . 4 Striker 2 | . . . . . . . . . . . . . . . . . . . . . . . . . . . . . . . . 2 V-Series 1 | . . . . . . . . . . . . . . . . . . . . . . . . . . . . . . . . 1 Protovariant L 1 | . . . . . . . . . . . . . . . . . . . . . . . . . . . . . . . 1 . Packrat 4 | . . . . . . . . . . . . . . . . . . . . . . . . . 4 . . . . . . . Samaritan 2 | . . . . . . . . . . . . . . . . . . . . . . . . . 2 . . . . . . . Assembled 2 | . . 2 . . . . . . . . . . . . . . . . . . . . . . . . . . . . . . Best Kill Streak 8 | 5 4 2 4 4 4 6 5 . 2 . . . . . . 2 . . . . 4 . 2 2 . . . . 1 . 2 8 Combat Bots Only 8 | . 3 2 3 2 3 6 5 . . . . . . . . . . . . . . . 1 . . . . . . . 1 8 Max Kills in Single Turn 4 | 1 1 1 1 2 1 2 1 . 1 . . . . . . 1 . . . . 1 . 1 1 1 . . . 1 . 1 4 Gunslinging . | . . . . . . . . . . . . . . . . . . . . . . . . . . . . . . . . . Exploded 4 | . 1 . . . . . . . . . . . . . . . . . . . . . . . . . . . . . . 4 Melee 1 | . . . . . . . . . . . . . . . . . . . . . . . 1 . . . . . . . 1 1 Uniques/NPCs Destroyed . | . . . . . . . . . . . . . . . . . . . . . . . . . . . . . . . . . Combat | -11 -10 -10 -9 -9 -8 -8 -8 -8 -6 -6 -6 -6 -5 -5 -5 -5 -5 -5 -5 -4 -4 -4 -4 -4 -4 -4 -3 -3 -3 -2 -2 -2 -------- Run | Yrd Mat Min Mat Min Mat Sto Rec Scr Fac Low Low Dat Pro Fac Was Fac Upp Upp Zhi Pro Fac Was Fac Upp Upp War Pro Res Qua Res Tes Frg Hostile Shots Fired 813 | . 66 26 115 15 96 68 27 . 9 . 2 . 6 . . . . . . 8 4 . 3 1 . 9 . . 7 2 13 336 Missed 322 | . 22 4 29 5 18 22 6 . 4 . . . 1 . . . . . . 5 2 . 2 1 . 6 . . 6 . 7 182 Deflected 4 | . . . . . . . . . . . . . . . . . . . . . . . . . . . . . . . 1 3 Hits 491 | . 44 22 86 10 78 46 21 . 5 . 2 . 5 . . . . . . 3 2 . 1 . . 3 . . 1 2 6 154 Melee 7 | . . 2 . . . 2 . . . . . . . . . . . . . . . . . . . . . . . . . 3 Projectile 484 | . 44 20 86 10 78 44 21 . 5 . 2 . 5 . . . . . . 3 2 . 1 . . 3 . . 1 2 6 151 AOE 36 | . . 7 . . . 16 4 . . . . . . . . . . . . . . . . . . 4 . . . . . 5 Critical Strikes 24 | . 1 . 1 . 8 2 1 . . . . . 1 . . . . . . . . . . . . . . . . . . 10 Part Disruptions 2 | . . . . . . . 2 . . . . . . . . . . . . . . . . . . . . . . . . . Damage Taken 10619 | . 535 659 968 140 1135 1259 432 . 101 18 40 . 82 . . 9 . . 7 54 91 . 26 16 . 215 . . 18 57 143 4614 Core 1936 | . 39 125 113 25 87 172 88 . 29 . . . 15 . . 9 . . 7 . 51 . 6 16 . 8 . . 18 . 96 1032 Absorbed by Shields . | . . . . . . . . . . . . . . . . . . . . . . . . . . . . . . . . . Redirected to Shielding 47 | . . . . . . . . . . . . . . . . . . . . 47 . . . . . . . . . . . . Regen/Repaired (Parts) 1558 | . . . . . . . . . . . . . . . 19 . . . . . . . . . . . . . . . 24 1515 Core Remaining (%) 71 | 100 . 34 . 65 . . . 36 . . . . 94 . . . . . . 98 . . . . . . 92 . 98 . . 22 Volleys Fired 399 | 13 62 11 92 9 53 80 21 . . 2 4 . . 3 . . 1 1 . . 1 . . . . . . . . . 17 29 Largest 3 | 2 2 2 2 2 3 3 3 . . 1 1 . . 1 . . 1 1 . . 1 . . . . . . . . . 1 1 Hottest 140 | 40 40 90 66 66 99 99 75 . . 43 43 . . 5 . . 43 5 . . 5 . . . . . . . . . 58 140 Shots Fired 876 | 26 124 25 184 18 149 232 61 . . 2 4 . . 3 . . 1 1 . . 1 . . . . . . . . . 17 28 Gun 480 | 26 121 25 41 . . 206 61 . . . . . . . . . . . . . . . . . . . . . . . . . Cannon 361 | . . . 143 18 148 24 . . . . . . . . . . . . . . . . . . . . . . . . 17 11 Launcher 30 | . 3 . . . 1 2 . . . 2 4 . . . . . 1 . . . . . . . . . . . . . . 17 Special 5 | . . . . . . . . . . . . . . 3 . . . 1 . . 1 . . . . . . . . . . . Kinetic 809 | 26 121 3 184 18 148 230 61 . . . . . . . . . . . . . . . . . . . . . . . 17 1 Thermal 10 | . . . . . . . . . . . . . . . . . . . . . . . . . . . . . . . . 10 Explosive 13 | . 3 . . . 1 2 . . . 2 4 . . . . . 1 . . . . . . . . . . . . . . . Electromagnetic 39 | . . 22 . . . . . . . . . . . . . . . . . . . . . . . . . . . . . 17 Robot Hit Streak 19 | 6 10 9 19 6 12 18 9 . . . . . . 1 . . . . . . 2 . . . . . . . . . . 2 Robot Miss Streak 6 | 2 6 3 4 2 3 4 2 . . . . . . 2 . . . . . . . . . . . . . . . . . 3 Penetration Max . | . . . . . . . . . . . . . . . . . . . . . . . . . . . . . . . . . Secondary Targets 5 | . . . . . . 4 1 . . . . . . . . . . . . . . . . . . . . . . . . . Max Gunslinging Chain 1 | . . . . . . 1 1 . . . . . . . . . . . . . . . . . . . . . . . . . Autonomous 16 | . . . . . . . . . . . . . . . . . . . . . . . . . . . . . 1 . . 15 Shots Hit Robots 704 | 17 67 21 112 12 86 144 42 . 9 . 2 . . 1 . 7 . . 13 . 15 . 4 3 8 . . . . . 26 115 Core Hits 337 | 8 37 15 40 6 40 61 17 . 5 . . . . . . 2 . . 4 . 5 . 4 2 4 . . . 1 . 10 76 Critical Kills 3 | . 1 . . . . . 2 . . . . . . . . . . . . . . . . . . . . . . . . . Critical Parts Destroyed 1 | . . . . . . 1 . . . . . . . . . . . . . . . . . . . . . . . . . . Critical Strikes 18 | . 1 . 7 1 3 2 2 . . . . . . . . . . . . . . . . . . . . . . . . 2 Destroy 4 | . 1 . . . . 1 2 . . . . . . . . . . . . . . . . . . . . . . . . . Blast 12 | . . . 7 1 3 1 . . . . . . . . . . . . . . . . . . . . . . . . . . Melee Attacks 514 | . . . . . . . . . 36 8 6 . 4 3 . 19 3 1 16 . 48 1 4 14 28 29 30 4 20 12 44 184 Impact . | . . . . . . . . . . . . . . . . . . . . . . . . . . . . . . . . . Slashing 514 | . . . . . . . . . 36 8 6 . 4 3 . 19 3 1 16 . 48 1 4 14 28 29 30 4 20 12 44 184 Piercing . | . . . . . . . . . . . . . . . . . . . . . . . . . . . . . . . . . Sneak Attacks 59 | . . . . . . . . . 4 . . . . . . 2 . . . . 4 . 2 2 7 . . . . . 13 25 Combat Hostiles 7 | . . . . . . . . . . . . . . . . . . . . . . . . . . . . . . . . 7 Follow-up Attacks 1 | . . . . . . . . . . . . . . . . . . . . . . . . . . . . . . . . 1 Damage Inflicted 29384 | 240 1180 300 2309 306 2005 2575 904 . 559 . 72 . . . . 376 . . 1055 . 803 . 267 236 639 . . . 90 . 2436 13032 Guns 4687 | 240 890 251 281 . . 2200 825 . . . . . . . . . . . . . . . . . . . . . . . . . Cannons 5766 | . . . 1918 270 1948 252 . . . . . . . . . . . . . . . . . . . . . . 90 . . 1288 Explosions 1841 | . 192 . . . . 36 . . . . . . . . . . . . . . . . . . . . . . . . . 1613 Melee 16574 | . . . . . . . . . 559 . 72 . . . . 376 . . 1055 . 803 . 267 236 639 . . . . . 2436 10131 Ramming 516 | . 98 49 110 36 57 87 79 . . . . . . . . . . . . . . . . . . . . . . . . . Kinetic 8853 | 240 890 29 2199 270 1948 2452 825 . . . . . . . . . . . . . . . . . . . . . . . . . Thermal . | . . . . . . . . . . . . . . . . . . . . . . . . . . . . . . . . . Explosive 228 | . 192 . . . . 36 . . . . . . . . . . . . . . . . . . . . . . . . . . Electromagnetic 1835 | . . 222 . . . . . . . . . . . . . . . . . . . . . . . . . . . . . 1613 Impact . | . . . . . . . . . . . . . . . . . . . . . . . . . . . . . . . . . Slashing 16574 | . . . . . . . . . 559 . 72 . . . . 376 . . 1055 . 803 . 267 236 639 . . . . . 2436 10131 Piercing . | . . . . . . . . . . . . . . . . . . . . . . . . . . . . . . . . . Phasic 1378 | . . . . . . . . . . . . . . . . . . . . . . . . . . . . . 90 . . 1288 Highest Corruption 9 | . 8 9 . . 1 6 7 . . . . . . . . . . . . . . 8 8 8 8 8 . . . . . 9 Average Corruption 5 | . 5 8 . . 1 4 6 . . . . . . . . . . . . . . 8 8 8 8 8 . . . . . 4 Corruption Purged . | . . . . . . . . . . . . . . . . . . . . . . . . . . . . . . . . . Corruption Blocked . | . . . . . . . . . . . . . . . . . . . . . . . . . . . . . . . . . Effects 343 | . 83 39 . . 1 63 45 . . . . . . . . . . . . . . 2 6 3 7 . . . . . . 94 Message Errors 89 | . 19 10 . . . 13 15 . . . . . . . . . . . . . . . 3 2 1 . . . . . . 26 Matter Fused 92 | . 27 8 . . 1 17 10 . . . . . . . . . . . . . . . . 1 2 . . . . . . 26 Heat Flow Errors 46 | . 11 7 . . . 6 6 . . . . . . . . . . . . . . 1 1 . . . . . . . . 14 Energy Discharges 42 | . 11 3 . . . 11 7 . . . . . . . . . . . . . . . . . . . . . . . . 10 Parts Rejected 2 | . 1 . . . . . . . . . . . . . . . . . . . . 1 . . . . . . . . . . Parts Fused 3 | . 1 . . . . . 1 . . . . . . . . . . . . . . . . . . . . . . . . 1 Data Loss (minor) 36 | . 6 2 . . . 7 4 . . . . . . . . . . . . . . . 1 . 3 . . . . . . 13 Data Loss (major) 12 | . 2 3 . . . 3 . . . . . . . . . . . . . . . . . . 1 . . . . . . 3 Misfires 7 | . 3 3 . . . . 1 . . . . . . . . . . . . . . . . . . . . . . . . . Alerts 9 | . 2 3 . . . 2 1 . . . . . . . . . . . . . . . 1 . . . . . . . . . Weapon Failures 5 | . . . . . . 4 . . . . . . . . . . . . . . . . . . . . . . . . . 1 Overload Shots . | . . . . . . . . . . . . . . . . . . . . . . . . . . . . . . . . . Overflow Damage 2423 | . . 6 35 . 18 . . . 26 . . . . . . 55 . . 130 . 162 . . 41 203 . . . . . 409 1338 Projectiles 110 | . . . 30 . 18 . . . . . . . . . . . . . . . . . . . . . . . . . . 62 Explosions 66 | . . 6 . . . . . . . . . . . . . . . . . . . . . . . . . . . . . 60 Melee 2247 | . . . 5 . . . . . 26 . . . . . . 55 . . 130 . 162 . . 41 203 . . . . . 409 1216 Knockbacks 35 | . . . 14 5 12 2 2 . . . . . . . . . . . . . . . . . . . . . . . . . Impact 4 | . . . 1 . . 1 2 . . . . . . . . . . . . . . . . . . . . . . . . . Kinetic 29 | . . . 11 5 12 1 . . . . . . . . . . . . . . . . . . . . . . . . . . Secondary 2 | . . . 2 . . . . . . . . . . . . . . . . . . . . . . . . . . . . . Self-Inflicted Damage 135 | . 8 79 . . . . . . . 19 . . . . . . . . . . . . . . . . . . . . . 29 Shots 4 | . 1 1 . . . . . . . 1 . . . . . . . . . . . . . . . . . . . . . 1 Rammed 57 | . 17 6 13 5 4 9 3 . . . . . . . . . . . . . . . . . . . . . . . . . Targets Rammed 65 | . 18 7 14 7 4 9 6 . . . . . . . . . . . . . . . . . . . . . . . . . Kicked . | . . . . . . . . . . . . . . . . . . . . . . . . . . . . . . . . . Crushed 8 | . 1 1 1 2 . . 3 . . . . . . . . . . . . . . . . . . . . . . . . . Highest Temperature 454 | . 275 228 120 96 359 256 207 . 66 53 21 12 40 1 6 1 1 1 1 24 39 126 183 . . 283 222 4 89 . 454 223 Average Temperature 46 | . 78 89 22 48 167 62 51 . 19 22 7 7 14 1 1 1 1 1 1 15 28 95 123 . . 203 140 4 71 . 204 71 Received Heat Transfer 1944 | . 282 . 309 81 423 225 45 . 36 . 18 . . . . . . . . . 9 . . . . 9 . . . 9 9 489 Effects 2 | . . . . . 1 . . . . . . . . . . . . . . . . . . . . . . . . . 1 . Shutdowns 1 | . . . . . 1 . . . . . . . . . . . . . . . . . . . . . . . . . . . Matter Decay 1 | . . . . . . . . . . . . . . . . . . . . . . . . . . . . . . . 1 . Siege Activations . | . . . . . . . . . . . . . . . . . . . . . . . . . . . . . . . . . Martial Activations . | . . . . . . . . . . . . . . . . . . . . . . . . . . . . . . . . . Shielding Activations . | . . . . . . . . . . . . . . . . . . . . . . . . . . . . . . . . . Robots Disrupted 4 | . . . . . . . . . . . . . . . . . . . . . . . 1 . . . . . . . . 3 Combat Hostiles 2 | . . . . . . . . . . . . . . . . . . . . . . . 1 . . . . . . . . 1 Robots Corrupted 5 | . . . 1 . . . . . . . . . . . . . . . . . . . . . . . . . . . . 4 Combat Hostiles 4 | . . . . . . . . . . . . . . . . . . . . . . . . . . . . . . . . 4 Parts Fried 13 | . . . 2 . . . . . . . . . . . . . . . . . . . . . . . . . . . . 11 Impact Corruptions 1 | . . . 1 . . . . . . . . . . . . . . . . . . . . . . . . . . . . . Robots Melted . | . . . . . . . . . . . . . . . . . . . . . . . . . . . . . . . . . Combat Hostiles . | . . . . . . . . . . . . . . . . . . . . . . . . . . . . . . . . . Parts Melted . | . . . . . . . . . . . . . . . . . . . . . . . . . . . . . . . . . Heat Transferred . | . . . . . . . . . . . . . . . . . . . . . . . . . . . . . . . . . Parts Sabotaged . | . . . . . . . . . . . . . . . . . . . . . . . . . . . . . . . . . Parts Stolen . | . . . . . . . . . . . . . . . . . . . . . . . . . . . . . . . . . Parts Stripped 8 | . . . . . . . . . . . . . . . . . . . . . . . . . . . . . . . . 8 Power Chain Reactions . | . . . . . . . . . . . . . . . . . . . . . . . . . . . . . . . . . Alert | -11 -10 -10 -9 -9 -8 -8 -8 -8 -6 -6 -6 -6 -5 -5 -5 -5 -5 -5 -5 -4 -4 -4 -4 -4 -4 -4 -3 -3 -3 -2 -2 -2 ------- Run | Yrd Mat Min Mat Min Mat Sto Rec Scr Fac Low Low Dat Pro Fac Was Fac Upp Upp Zhi Pro Fac Was Fac Upp Upp War Pro Res Qua Res Tes Frg Maximum Alert Level 5 | . . . 1 . 1 1 . . 1 . . . . 2 . 1 . . . . . . . . . . . . . . . 5 Low Security (%) 61 | 100 100 100 69 100 81 36 100 . 98 . . . . . 100 67 . . . . 100 100 100 . . . . 100 100 100 100 1 Level 1 19 | . . . 30 . 18 63 . . 1 . . . . . . 32 . . . . . . . . . . . . . . . 29 Level 2 3 | . . . . . . . . . . . . . . 100 . . . . . . . . . . . . . . . . . 12 Level 3 1 | . . . . . . . . . . . . . . . . . . . . . . . . . . . . . . . . 6 Level 4 2 | . . . . . . . . . . . . . . . . . . . . . . . . . . . . . . . . 9 Level 5 10 | . . . . . . . . . . . . . . . . . . . . . . . . . . . . . . . . 41 High Security . | . . . . . . . . . . . . . . . . . . . . . . . . . . . . . . . . . Max Security . | . . . . . . . . . . . . . . . . . . . . . . . . . . . . . . . . . Peak Influence 2435 | 20 112 20 249 75 275 288 91 . 285 . . . . 454 161 351 . . . . 102 137 113 . . . . 35 126 103 158 2435 Initial 452 | . . 13 . 70 . 110 81 . . . . . . 452 146 14 . . . . . 35 60 . . . . 33 . 60 49 88 Average 392 | 3 31 1 139 9 73 201 26 . 96 . . . . 436 92 134 . . . . 29 93 70 . . . . 20 38 87 54 1241 Influence Increases 9744 | 35 517 40 736 85 708 1029 330 . 495 . . . 45 456 75 498 15 . 5 30 225 152 123 173 . 15 75 8 247 69 331 3227 Destroy 0b10 Robot/C 3280 | . 260 20 480 60 460 580 160 . . . . . . . . 120 . . . . . . 40 100 . . . . . . 40 960 Destroy 0b10 Robot/NC 550 | 35 45 5 55 15 35 70 20 . 20 . . . . . . 40 . . 5 . 30 . 10 10 . . . . 5 . 35 115 Destroy Leader 762 | . 58 . 156 10 150 184 . . 4 . . . . . . 18 . . . . 4 . 22 10 . . . . 2 . 6 138 Allied During Kill 192 | . . . . . 5 67 . . . . . . . . . 58 . . . . . . 39 23 . . . . . . . . Successful Hack 255 | . 22 . 15 . 5 22 . . 46 . . . . . . . . . . . . . 12 . . . . . 54 18 10 51 Select Force Hacks 210 | . 60 . . . . . 150 . . . . . . . . . . . . . . . . . . . . . . . . . Disable Machine 525 | . 15 . . . . 60 . . 45 . . . . . . 15 . . . . 45 . . . . . . . 15 . 60 270 Anti-Garrison Action 300 | . . . . . . . . . . . . . . . . 150 . . . . . . . . . . . . . . . 150 Destroy Structure 715 | . 12 15 15 . 23 31 . . 20 . . . . 6 60 82 . . . . 26 92 . . . . . 8 36 36 75 178 Advance Influence 450 | . . . . . . . . . . . . . . 450 . . . . . . . . . . . . . . . . . . Partial Spotted 525 | . . . . . . . . . 90 . . . . . 15 15 . . . . 30 60 . . . . . . 60 15 15 225 Lose Combat Pursuer 1980 | . 45 . 15 . 30 15 . . 270 . . . 45 . . . 15 . . 30 90 . . 30 . 15 75 . 75 . 90 1140 Influence Decreases 7309 | 35 482 75 553 268 445 1084 508 30 210 166 119 . 40 43 472 208 206 120 5 30 124 166 117 235 31 15 24 57 141 88 262 950 Entered New Map 1308 | . . 22 . 113 . 153 127 30 . 106 23 . . 3 272 7 116 23 . . . 66 27 35 7 . . 18 2 48 40 70 Time Decay 5174 | 35 472 53 503 155 417 661 371 . 200 60 96 . 40 40 160 131 90 97 5 30 114 40 70 80 24 15 24 30 139 30 222 770 Lost Part 250 | . 10 . 50 . 20 30 10 . . . . . . . . . . . . . 10 . . . . . . . . 10 . 110 Lost Ally 577 | . . . . . 8 240 . . 10 . . . . . 40 70 . . . . . 60 20 120 . . . 9 . . . . Squads Dispatched 55 | . 2 . 5 . 4 5 . . 6 . . . . 3 . 9 . . . . 2 . 1 . . . . 3 2 . 4 9 Investigation 25 | . 2 . 2 . . . . . 4 . . . . 2 . 6 . . . . 2 . 1 . . . . 2 . . . 4 Extermination 9 | . . . . . . . . . 2 . . . . 1 . . . . . . . . . . . . . 1 1 . 3 1 Reinforcement 11 | . . . 3 . 3 . . . . . . . . . . 1 . . . . . . . . . . . . 1 . 1 2 Assault 6 | . . . . . . 2 . . . . . . . . . 2 . . . . . . . . . . . . . . . 2 Garrison 4 | . . . . . 1 3 . . . . . . . . . . . . . . . . . . . . . . . . . . Intercept . | . . . . . . . . . . . . . . . . . . . . . . . . . . . . . . . . . Searches Triggered . | . . . . . . . . . . . . . . . . . . . . . . . . . . . . . . . . . Data Miner Redirects 4 | . . . . . . . . . . . . . . 1 . 3 . . . . . . . . . . . . . . . . Construction Impeded . | . . . . . . . . . . . . . . . . . . . . . . . . . . . . . . . . . Haulers Reinforced 1 | . . . . . . . . . . . . . . . . 1 . . . . . . . . . . . . . . . . Active Scanning Responses . | . . . . . . . . . . . . . . . . . . . . . . . . . . . . . . . . . Cargo Convoy Interrupts . | . . . . . . . . . . . . . . . . . . . . . . . . . . . . . . . . . Stealth | -11 -10 -10 -9 -9 -8 -8 -8 -8 -6 -6 -6 -6 -5 -5 -5 -5 -5 -5 -5 -4 -4 -4 -4 -4 -4 -4 -3 -3 -3 -2 -2 -2 --------- Run | Yrd Mat Min Mat Min Mat Sto Rec Scr Fac Low Low Dat Pro Fac Was Fac Upp Upp Zhi Pro Fac Was Fac Upp Upp War Pro Res Qua Res Tes Frg Distress Signals 25 | . 1 . 2 . 1 3 . . 1 . . . . . . . . . . . . . . . . 1 . . 2 . . 14 Communications Jammed . | . . . . . . . . . . . . . . . . . . . . . . . . . . . . . . . . . Distress Signals . | . . . . . . . . . . . . . . . . . . . . . . . . . . . . . . . . . Times Spotted 549 | . 31 6 37 3 32 36 7 . 23 . 3 . 7 . 8 6 5 . . 2 10 4 2 2 . 37 5 1 14 2 14 252 Peak Tracking Total 17 | . 4 3 5 3 4 7 4 . 9 . 3 . 6 . 6 2 5 . . 2 5 3 1 2 . 17 5 1 6 3 8 15 Tactical Retreats 83 | . 2 2 1 . 2 1 . . 6 . . . 2 . 2 . 1 . . 1 3 1 . 2 . 1 2 . 2 . 2 50 Traps | -11 -10 -10 -9 -9 -8 -8 -8 -8 -6 -6 -6 -6 -5 -5 -5 -5 -5 -5 -5 -4 -4 -4 -4 -4 -4 -4 -3 -3 -3 -2 -2 -2 ------- Run | Yrd Mat Min Mat Min Mat Sto Rec Scr Fac Low Low Dat Pro Fac Was Fac Upp Upp Zhi Pro Fac Was Fac Upp Upp War Pro Res Qua Res Tes Frg Traps Triggered 23 | . 6 2 2 . 1 . . . 1 . . . . 1 . . . . . . 3 . . . . . . . . . . 7 Indirectly 2 | . . . . . . . . . . . . . . . . . . . . . . . . . . . . . . . . 2 Trap Hack Attempts . | . . . . . . . . . . . . . . . . . . . . . . . . . . . . . . . . . Triggered . | . . . . . . . . . . . . . . . . . . . . . . . . . . . . . . . . . Disarmed 6 | . . . . . . . . . . . . . . . . . . . . . 6 . . . . . . . . . . . Reprogrammed . | . . . . . . . . . . . . . . . . . . . . . . . . . . . . . . . . . Reused . | . . . . . . . . . . . . . . . . . . . . . . . . . . . . . . . . . Traps Extracted 2 | . . 2 . . . . . . . . . . . . . . . . . . . . . . . . . . . . . . Installed . | . . . . . . . . . . . . . . . . . . . . . . . . . . . . . . . . . Triggered . | . . . . . . . . . . . . . . . . . . . . . . . . . . . . . . . . . Most Traps Carried 2 | . . 2 2 2 2 2 2 2 2 2 2 2 2 2 2 2 2 2 2 . . . . . . . . . . . . . Machines | -11 -10 -10 -9 -9 -8 -8 -8 -8 -6 -6 -6 -6 -5 -5 -5 -5 -5 -5 -5 -4 -4 -4 -4 -4 -4 -4 -3 -3 -3 -2 -2 -2 ---------- Run | Yrd Mat Min Mat Min Mat Sto Rec Scr Fac Low Low Dat Pro Fac Was Fac Upp Upp Zhi Pro Fac Was Fac Upp Upp War Pro Res Qua Res Tes Frg Machines Disabled 42 | . 1 . . . . 4 . . 3 1 . . . . . 2 . . . . 3 . . . . . . . 1 . 4 23 Max in Single Turn 1 | . 1 . . . . 1 . . 1 1 . . . . . 1 . . . . 1 . . . . . . . 1 . 1 1 Garrison Access 4 | . . . . . . . . . . . . . . . . 1 . . . . . . 1 . . . . . 1 . . 1 Machines Repaired . | . . . . . . . . . . . . . . . . . . . . . . . . . . . . . . . . . Machines Dismantled . | . . . . . . . . . . . . . . . . . . . . . . . . . . . . . . . . . Machines Sabotaged . | . . . . . . . . . . . . . . . . . . . . . . . . . . . . . . . . . Overloaded Fab Kills . | . . . . . . . . . . . . . . . . . . . . . . . . . . . . . . . . . Hacking | -11 -10 -10 -9 -9 -8 -8 -8 -8 -6 -6 -6 -6 -5 -5 -5 -5 -5 -5 -5 -4 -4 -4 -4 -4 -4 -4 -3 -3 -3 -2 -2 -2 --------- Run | Yrd Mat Min Mat Min Mat Sto Rec Scr Fac Low Low Dat Pro Fac Was Fac Upp Upp Zhi Pro Fac Was Fac Upp Upp War Pro Res Qua Res Tes Frg Machines Accessed 113 | . 9 1 7 . 7 9 6 3 13 . 1 4 . 3 . 10 . . 4 . 3 . 4 . . 2 . 3 7 2 8 7 Terminals 54 | . 7 . 6 . 4 7 1 . 7 . 1 . . . . 3 . . . . 1 . 1 . . . . 1 5 2 6 2 Fabricators 5 | . . . . . . . . . 2 . . . . . . . . . . . . . 1 . . . . . . . 1 1 Repair Stations 1 | . . . . . 1 . . . . . . . . . . . . . . . . . . . . . . . . . . . Recycling Units 27 | . 2 . . . . 1 5 . 3 . . . . 2 . 6 . . . . 2 . 1 . . . . 2 . . . 3 Scanalyzers 4 | . . . 1 . 1 . . . . . . . . 1 . . . . . . . . . . . . . . 1 . . . Garrison Access 8 | . . . . . 1 1 . . 1 . . . . . . 1 . . . . . . 1 . . . . . 1 . 1 1 Total Hacks 295 | . 29 1 16 . 12 21 9 23 28 . 2 32 . 4 . 20 . . 17 . 4 . 7 . . 3 . 6 20 6 21 14 Successful 185 | . 12 1 9 . 5 11 6 23 14 . 2 32 . 4 . 8 . . 17 . 3 . 3 . . 3 . 4 9 3 9 7 Failed 109 | . 17 . 6 . 7 10 3 . 14 . . . . . . 12 . . . . 1 . 4 . . . . 2 11 3 12 7 Catastrophic 17 | . . . 1 . 1 3 . . 2 . . . . . . 1 . . . . . . 2 . . . . . 3 1 3 . Database Lockouts 1 | . . . 1 . . . . . . . . . . . . . . . . . . . . . . . . . . . . . Manual 128 | . 26 . 11 . 4 13 9 . 6 1 . . . 2 . 19 . . . . 4 . 3 . . 1 . 6 3 5 8 7 Terminals 146 | . 24 . 13 . 6 18 3 . 19 . 2 . . . . 10 . . . . 2 . 2 . . . . 4 16 6 16 5 Fabricators 10 | . . . . . . . . . 3 . . . . . . . . . . . . . 1 . . . . . . . 4 2 Repair Stations 3 | . . . . . 3 . . . . . . . . . . . . . . . . . . . . . . . . . . . Recycling Units 36 | . 5 . . . . 1 6 . 4 . . . . 2 . 9 . . . . 2 . 2 . . . . 2 . . . 3 Scanalyzers 8 | . . . 3 . 2 . . . . . . . . 2 . . . . . . . . . . . . . . 1 . . . Garrison Access 16 | . . . . . 1 2 . . 2 . . . . . . 1 . . . . . . 2 . . . . . 3 . 1 4 Terminal Hacks 114 | . 2 1 2 . 1 4 . 23 7 . 2 32 . . . 3 . . 17 . 1 . 1 . . 3 . 1 6 2 5 1 Record 39 | . . . . . . . . 17 . . 2 11 . . . . . . 5 . . . . . . 2 . . 2 . . . Part Schematic 18 | . . . . . . . . . 1 . . 13 . . . . . . 4 . . . . . . . . . . . . . Robot Schematic 5 | . . . . . . . . . . . . 5 . . . . . . . . . . . . . . . . . . . . Robot Analysis 15 | . 2 . . . . 1 . 5 1 . . . . . . . . . 4 . . . . . . . . . 1 . . 1 Prototype ID Bank 8 | . . . . . . . . . . . . 3 . . . . . . 4 . . . . . . . . . . . 1 . Open Door 5 | . . 1 . . . 2 . 1 . . . . . . . . . . . . . . . . . 1 . . . . . . Level Access Points 1 | . . . . . . . . . 1 . . . . . . . . . . . . . . . . . . . . . . . Branch Access Points 5 | . . . 1 . . . . . . . . . . . . 1 . . . . . . 1 . . . . 1 . 1 . . Recycling Unit Index 2 | . . . . . . . . . . . . . . . . 1 . . . . . . . . . . . . . 1 . . Locate Traps 1 | . . . . . . . . . . . . . . . . . . . . . . . . . . . . . 1 . . . Disarm Traps 1 | . . . . . . . . . . . . . . . . . . . . . 1 . . . . . . . . . . . Patrol Status 1 | . . . . . . . . . . . . . . . . . . . . . . . . . . . . . . . 1 . Recall Extermination 2 | . . . . . . . . . . . . . . . . . . . . . . . . . . . . . 1 . 1 . Hauler Manifests 4 | . . . 1 . 1 1 . . . . . . . . . 1 . . . . . . . . . . . . . . . . Registered Prototypes 1 | . . . . . . . . . 1 . . . . . . . . . . . . . . . . . . . . . . . Zone Layout 5 | . . . . . . . . . 3 . . . . . . . . . . . . . . . . . . . 1 . 1 . Protovariant Controls 1 | . . . . . . . . . . . . . . . . . . . . . . . . . . . . . . . 1 . Fabricator Hacks 4 | . . . . . . . . . 2 . . . . . . . . . . . . . . . . . . . . . 1 1 Network Status 1 | . . . . . . . . . . . . . . . . . . . . . . . . . . . . . . . 1 . Load Schematic 1 | . . . . . . . . . 1 . . . . . . . . . . . . . . . . . . . . . . . Build 2 | . . . . . . . . . 1 . . . . . . . . . . . . . . . . . . . . . . 1 Repair Station Hacks . | . . . . . . . . . . . . . . . . . . . . . . . . . . . . . . . . . Recycling Unit Hacks 2 | . . . . . . 1 1 . . . . . . . . . . . . . . . . . . . . . . . . . Retrieve Components 2 | . . . . . . 1 1 . . . . . . . . . . . . . . . . . . . . . . . . . Scanalyzer 6 | . . . 2 . 2 . . . . . . . . 2 . . . . . . . . . . . . . . . . . . Retrieve Study 6 | . . . 2 . 2 . . . . . . . . 2 . . . . . . . . . . . . . . . . . . Garrison Access Hacks 3 | . . . . . 1 . . . . . . . . . . . . . . . . . 1 . . . . . 1 . . . Unlock Access 1 | . . . . . 1 . . . . . . . . . . . . . . . . . . . . . . . . . . . Seal Access 2 | . . . . . . . . . . . . . . . . . . . . . . . 1 . . . . . 1 . . . Unauthorized Hacks 56 | . 10 . 5 . 1 6 5 . 5 . . . . 2 . 5 . . . . 2 . 1 . . . . 3 2 1 3 5 Terminals 31 | . 8 . 5 . 1 6 . . 2 . . . . . . . . . . . . . . . . . . 1 2 1 3 2 Track 2 | . . . . . . . . . . . . . . . . . . . . . . . . . . . . . . . 1 1 Assimilate 3 | . . . . . . . . . 1 . . . . . . . . . . . . . . . . . . 1 . . 1 . Botnet 8 | . 3 . . . . 1 . . . . . . . . . . . . . . . . . . . . . . 1 1 1 1 Skim 18 | . 5 . 5 . 1 5 . . 1 . . . . . . . . . . . . . . . . . . . 1 . . . Fabricators . | . . . . . . . . . . . . . . . . . . . . . . . . . . . . . . . . . Repair Stations . | . . . . . . . . . . . . . . . . . . . . . . . . . . . . . . . . . Recycling Units 25 | . 2 . . . . . 5 . 3 . . . . 2 . 5 . . . . 2 . 1 . . . . 2 . . . 3 Tunnel 7 | . 2 . . . . . 5 . . . . . . . . . . . . . . . . . . . . . . . . . Fedlink 18 | . . . . . . . . . 3 . . . . 2 . 5 . . . . 2 . 1 . . . . 2 . . . 3 Scanalyzers . | . . . . . . . . . . . . . . . . . . . . . . . . . . . . . . . . . Garrison Access . | . . . . . . . . . . . . . . . . . . . . . . . . . . . . . . . . . Data Cores Recovered 2 | . . . . . . . . . . . . . . . . . . . . . . . . . . . . . . . 2 . Used . | . . . . . . . . . . . . . . . . . . . . . . . . . . . . . . . . . Hacking Detections 62 | . 8 . 4 . 6 7 1 . 9 . 1 . . 1 . 5 . . . . . . 2 . . . . 1 6 2 6 3 Full Trace Events 3 | . . . . . . . . . 1 . . . . . . 1 . . . . . . . . . . . . . . . 1 Feedback Events . | . . . . . . . . . . . . . . . . . . . . . . . . . . . . . . . . . Feedback Blocked 1 | . . . . . . . . . . . . . . . . . . . . . . . . . . . . . . . . 1 Robot Schematics Acquired 7 | . . . . . . . . . . . . 5 . . . . . . . . . . . . . . . . . . . 2 Robots Built . | . . . . . . . . . . . . . . . . . . . . . . . . . . . . . . . . . Authchips . | . . . . . . . . . . . . . . . . . . . . . . . . . . . . . . . . . Time . | . . . . . . . . . . . . . . . . . . . . . . . . . . . . . . . . . Total Robot Build Rating . | . . . . . . . . . . . . . . . . . . . . . . . . . . . . . . . . . Part Schematics Acquired 28 | . . . . . . . . . 1 . . 13 . . . . . . 4 . . . . . . . . . . . 2 8 Parts Built 3 | . . . . . . . . . 1 . . . . . . . . . . . . . . . . . . . . . . 2 Authchips . | . . . . . . . . . . . . . . . . . . . . . . . . . . . . . . . . . Time 250 | . . . . . . . . . 204 . . . . . . . . . . . . . . . . . . . . . . 46 Total Part Build Rating 26 | . . . . . . . . . 8 . . . . . . . . . . . . . . . . . . . . . . 18 Part Studies Acquired 6 | . . . 2 . 2 . . . . . . . . 2 . . . . . . . . . . . . . . . . . . Parts Repaired . | . . . . . . . . . . . . . . . . . . . . . . . . . . . . . . . . . Time . | . . . . . . . . . . . . . . . . . . . . . . . . . . . . . . . . . Parts Recycled . | . . . . . . . . . . . . . . . . . . . . . . . . . . . . . . . . . Recycled Matter . | . . . . . . . . . . . . . . . . . . . . . . . . . . . . . . . . . Retrieved Matter . | . . . . . . . . . . . . . . . . . . . . . . . . . . . . . . . . . Retrieved Components 12 | . . . . . . 10 2 . . . . . . . . . . . . . . . . . . . . . . . . . Parts Scanalyzed . | . . . . . . . . . . . . . . . . . . . . . . . . . . . . . . . . . Part Schematics Acquired . | . . . . . . . . . . . . . . . . . . . . . . . . . . . . . . . . . Parts Damaged . | . . . . . . . . . . . . . . . . . . . . . . . . . . . . . . . . . Bothacking | -11 -10 -10 -9 -9 -8 -8 -8 -8 -6 -6 -6 -6 -5 -5 -5 -5 -5 -5 -5 -4 -4 -4 -4 -4 -4 -4 -3 -3 -3 -2 -2 -2 ------------ Run | Yrd Mat Min Mat Min Mat Sto Rec Scr Fac Low Low Dat Pro Fac Was Fac Upp Upp Zhi Pro Fac Was Fac Upp Upp War Pro Res Qua Res Tes Frg Used RIF Installer . | . . . . . . . . . . . . . . . . . . . . . . . . . . . . . . . . . Robots Hacked 2 | . . . . . . . . . . . . . . 1 . . . . . . 1 . . . . . . . . . . . Non-combat 2 | . . . . . . . . . . . . . . 1 . . . . . . 1 . . . . . . . . . . . Combat . | . . . . . . . . . . . . . . . . . . . . . . . . . . . . . . . . . Robot Hacks Applied 2 | . . . . . . . . . . . . . . 1 . . . . . . 1 . . . . . . . . . . . find_chute 2 | . . . . . . . . . . . . . . 1 . . . . . . 1 . . . . . . . . . . . Relay Couplers Released 4 | . . . . . . . . . . . . . . . . 2 . . . . . . . . . . . . . . . 2 Machine Destruction 4 | . . . . . . . . . . . . . . . . 2 . . . . . . . . . . . . . . . 2 Fabnet Peak Effective % . | . . . . . . . . . . . . . . . . . . . . . . . . . . . . . . . . . Robots Rewired 4 | . . . . . . . 4 . . . . . . . . . . . . . . . . . . . . . . . . . Allies Hacked . | . . . . . . . . . . . . . . . . . . . . . . . . . . . . . . . . . Hacks Repelled . | . . . . . . . . . . . . . . . . . . . . . . . . . . . . . . . . . Allies | -11 -10 -10 -9 -9 -8 -8 -8 -8 -6 -6 -6 -6 -5 -5 -5 -5 -5 -5 -5 -4 -4 -4 -4 -4 -4 -4 -3 -3 -3 -2 -2 -2 -------- Run | Yrd Mat Min Mat Min Mat Sto Rec Scr Fac Low Low Dat Pro Fac Was Fac Upp Upp Zhi Pro Fac Was Fac Upp Upp War Pro Res Qua Res Tes Frg Total Allies 60 | . . 2 . 3 . 12 4 . 1 . . . . . 18 . . . . . . 19 . . . . . 1 . . . . Largest Group 19 | . . 2 . 3 3 10 4 4 1 . . . . . 18 8 . . . . . 19 7 6 . . . 1 . . . . Highest-Rated Group 702 | . . 45 . 40 40 203 87 87 10 . . . . . 638 321 . . . . . 702 276 251 . . . 10 . . . . Highest-Rated Ally 50 | . . 31 . 16 16 31 27 27 10 . . . . . 50 50 . . . . . 50 46 46 . . . 10 . . . . Total Orders 2 | . . . . . . . . 2 . . . . . . . . . . . . . . . . . . . . . . . . STAY 2 | . . . . . . . . 2 . . . . . . . . . . . . . . . . . . . . . . . . Ally Attacks 336 | . . 1 . . 9 52 . . . . . . . . 109 26 . . . . . 98 13 28 . . . . . . . . Total Damage 13524 | . . 22 . . 91 661 . . . . . . . . 7349 943 . . . . . 3411 260 787 . . . . . . . . Kills 51 | . . . . . 1 7 . . . . . . . . 14 12 . . . . . 11 1 5 . . . . . . . . Allies Corrupted . | . . . . . . . . . . . . . . . . . . . . . . . . . . . . . . . . . Allies Melted 9 | . . . . . . 1 . . . . . . . . . . . . . . . . . . . 1 . . . . . 7 Intel | -11 -10 -10 -9 -9 -8 -8 -8 -8 -6 -6 -6 -6 -5 -5 -5 -5 -5 -5 -5 -4 -4 -4 -4 -4 -4 -4 -3 -3 -3 -2 -2 -2 ------- Run | Yrd Mat Min Mat Min Mat Sto Rec Scr Fac Low Low Dat Pro Fac Was Fac Upp Upp Zhi Pro Fac Was Fac Upp Upp War Pro Res Qua Res Tes Frg Active Infowar (turns) 32271 | 110 2756 1047 2836 1343 2607 2524 1658 3807 398 127 476 18 794 95 332 311 193 363 114 280 317 89 148 177 193 777 666 76 353 66 478 6742 Optics 19350 | . . . 2373 1343 2607 2524 1658 3807 . . . . . . . . . . . . . . . . . . . . . . . 5038 Sensors 9165 | . . . . . . . . . 238 127 476 18 794 95 199 311 193 363 114 280 317 89 148 177 193 777 666 76 353 66 478 2617 Structural 3499 | . . . . . . . . . 372 127 476 18 794 95 332 311 193 363 114 280 24 . . . . . . . . . . . Seismic 8670 | 110 2756 1047 1819 . 2539 399 . . . . . . . . . . . . . . . . . . . . . . . . . . Robot Analysis Total 15 | . 2 . . . . 1 . 5 1 . . . . . . . . . 4 . . . . . . . . . 1 . . 1 Derelict Logs Recovered 16 | . . 1 . 2 . . . . . 1 2 . 1 . . . 2 1 . 2 . . . 2 2 . . . . . . . Drone Launches . | . . . . . . . . . . . . . . . . . . . . . . . . . . . . . . . . . Drone Recoveries . | . . . . . . . . . . . . . . . . . . . . . . . . . . . . . . . . . Exploration | -11 -10 -10 -9 -9 -8 -8 -8 -8 -6 -6 -6 -6 -5 -5 -5 -5 -5 -5 -5 -4 -4 -4 -4 -4 -4 -4 -3 -3 -3 -2 -2 -2 ------------- Run | Yrd Mat Min Mat Min Mat Sto Rec Scr Fac Low Low Dat Pro Fac Was Fac Upp Upp Zhi Pro Fac Was Fac Upp Upp War Pro Res Qua Res Tes Frg Turns Passed 34217 | 230 3432 1125 2836 1343 2607 2524 1658 4574 495 127 476 18 794 95 332 311 193 363 114 280 317 89 148 177 193 950 666 76 353 66 478 6777 Spaces Moved 30291 | 83 1174 326 994 541 995 1019 674 2440 1352 284 423 79 447 262 535 609 335 261 217 446 879 163 380 513 610 1120 512 186 861 191 1131 10249 Core 89 | 1 . . . . . . . 87 . . . . . . . . . . . . 1 . . . . . . . . . . . Treads 7340 | 82 1174 326 994 541 995 1019 674 1535 . . . . . . . . . . . . . . . . . . . . . . . . Legs . | . . . . . . . . . . . . . . . . . . . . . . . . . . . . . . . . . Wheels 818 | . . . . . . . . 818 . . . . . . . . . . . . . . . . . . . . . . . . Hover . | . . . . . . . . . . . . . . . . . . . . . . . . . . . . . . . . . Flight 22044 | . . . . . . . . . 1352 284 423 79 447 262 535 609 335 261 217 446 878 163 380 513 610 1120 512 186 861 191 1131 10249 Fastest Speed 5 | 50 160 320 240 240 216 216 225 50 23 23 23 23 23 23 23 23 23 23 20 11 11 17 17 20 20 5 5 17 6 18 5 5 Average Speed 75 | 158 266 322 240 240 237 219 225 184 24 24 23 23 23 23 23 23 23 23 21 22 20 17 19 20 20 19 19 17 16 18 17 17 Slowest Speed 500 | 160 320 325 320 240 285 285 225 225 26 93 93 23 23 23 23 23 23 23 23 23 500 20 20 20 20 20 20 17 90 18 18 100 Overloaded Moves 337 | . . . . . . . . . . . . . . . . . . . . 6 7 . . . . 20 17 . 17 . 57 213 Propulsion Burnouts . | . . . . . . . . . . . . . . . . . . . . . . . . . . . . . . . . . Robots Hopped 57 | . . . . . . . . . 5 . . . 1 . 2 2 . . . . . 2 1 . . 3 . 2 4 1 2 32 Potential Cave-ins 7 | . . . . . . . . . . . 2 . . . . . . . . . . . . . . . . . . . . 5 Cave-ins Triggered . | . . . . . . . . . . . . . . . . . . . . . . . . . . . . . . . . . Exploration Rate (%) 59 | 6 96 62 74 99 76 90 98 88 35 51 49 69 70 9 96 24 58 49 60 66 17 80 7 63 59 88 55 6 82 9 92 83 Regions Visited 32 Branch Regions 20 Pre-discovered Areas 24 | . 3 . 3 1 . 1 5 4 1 . . 1 . . . . . . 3 2 . . . . . . . . . . . . Known Exits Taken 27 | . 1 1 1 1 1 1 1 1 1 1 1 1 1 . . 1 1 1 1 1 . . 1 1 1 1 1 1 1 1 1 . Unknown Exits Taken 1 | 1 . . . . . . . . . . . . . . . . . . . . . . . . . . . . . . . . Scrap Searched 29 | . . 1 . 2 . . . 8 . 7 1 . 1 . . . 2 . . 1 . . . 2 3 . 1 . . . . . Spaces Dug 391 | . 5 . . . 14 28 . . 20 34 53 . 4 3 . 11 18 1 . . 13 1 . 11 17 26 30 4 18 12 17 51 Terrain Destroyed 458 | . 11 17 9 . 20 31 . . 20 34 71 . 4 3 . 11 18 1 . . 13 1 . 11 17 26 30 4 18 12 25 51 Melee 232 | . . . . . . . . . 20 6 2 . 4 3 . 11 3 1 . . 13 1 . 11 17 26 30 4 18 12 11 39 Projectile 45 | . . . 9 . 7 3 . . . . . . . . . . . . . . . . . . . . . . . . 14 12 AOE 181 | . 11 17 . . 13 28 . . . 28 69 . . . . . 15 . . . . . . . . . . . . . . . Terrain Rammed . | . . . . . . . . . . . . . . . . . . . . . . . . . . . . . . . . . Walls Destroyed . | . . . . . . . . . . . . . . . . . . . . . . . . . . . . . . . . . Machines Disabled . | . . . . . . . . . . . . . . . . . . . . . . . . . . . . . . . . . Actions | -11 -10 -10 -9 -9 -8 -8 -8 -8 -6 -6 -6 -6 -5 -5 -5 -5 -5 -5 -5 -4 -4 -4 -4 -4 -4 -4 -3 -3 -3 -2 -2 -2 --------- Run | Yrd Mat Min Mat Min Mat Sto Rec Scr Fac Low Low Dat Pro Fac Was Fac Upp Upp Zhi Pro Fac Was Fac Upp Upp War Pro Res Qua Res Tes Frg Total 40158 | 152 1328 365 1245 559 1135 1209 790 2516 1463 326 782 78 1130 289 740 748 443 561 262 624 950 217 445 568 638 1800 1032 221 1036 202 1322 14982 Wait 8114 | 46 45 5 84 3 22 41 23 32 53 30 346 . 678 12 207 119 102 299 17 179 16 50 61 42 1 628 491 32 138 1 88 4223 Move 30159 | 82 1173 325 993 540 994 1018 673 2439 1341 283 422 78 444 262 531 605 334 260 216 445 879 159 376 512 609 1115 511 181 852 188 1126 10193 Hop 43 | . . . . . . . . . 5 . . . 1 . 1 1 . . . . . 1 1 . . 1 . 2 4 1 2 23 Pick Up 137 | 4 18 5 25 . 14 14 2 19 3 . . . 1 . . . . . 2 . . 1 . . . 1 . . 2 . 5 21 Fast Attach 106 | 7 5 . 1 . 3 2 . 7 8 . . . . 3 . 1 . . 2 . 6 1 1 . . 10 . 1 8 . 9 31 Attach 47 | . 2 4 6 . 5 5 1 1 6 1 . . . . . . . . . . . . . . . . . 1 . . 1 14 Detach 19 | . . 1 . . . . 3 . . 1 . . . . . . . . . . . . . . . . . . . . 1 13 Swap 146 | . 5 4 10 . 18 20 . . 2 1 4 . . 3 1 2 3 . 8 . . 3 . . . 5 . . 2 . 19 36 Drop 190 | . . 3 20 . 22 19 4 18 9 . . . 1 3 . 1 . . 4 . . 1 1 . . 11 . . 10 . 10 53 Fire 399 | 13 62 11 92 9 53 80 21 . . 2 4 . . 3 . . 1 1 . . 1 . . . . . . . . . 17 29 Melee 510 | . . . . . . . . . 36 8 6 . 4 3 . 19 3 1 13 . 48 1 4 14 28 29 30 4 20 12 44 183 Ram . | . . . . . . . . . . . . . . . . . . . . . . . . . . . . . . . . . Kick . | . . . . . . . . . . . . . . . . . . . . . . . . . . . . . . . . . Crush 65 | . 18 7 14 7 4 9 6 . . . . . . . . . . . . . . . . . . . . . . . . . Escape Stasis 61 | . . . . . . . . . . . . . . . . . . . . . . . 1 . . . . . . . . 60 Rewire 71 | . . . . . . 1 57 . . . . . . . . . . . . . . . . . . . . . . . . 13 Trap . | . . . . . . . . . . . . . . . . . . . . . . . . . . . . . . . . . Miscellaneous 91 | . . . . . . . . . . . . . 1 . . . . . . . . . . . . . . . . . . 90 Route ------- -11/Scrapyard -10/Materials (discovered 6 exits: *Mat x3 / *Min x2 / Sub) -10/Mines (discovered 3 exits: *Mat x2 / [*Exi]) -9/Materials (discovered 5 exits: *Mat x3 / *Min x2) -9/Mines (discovered 3 exits: *Mat x2 / [*Zio]) -8/Materials (discovered 4 exits: *Fac x2 / *Sto / Gar) -8/Storage (discovered 2 exits: *Fac / *Rec) -8/Recycling (discovered 2 exits: *Fac / *Scr) -8/Scraptown (discovered 2 exits: *Fac x2) -6/Factory (discovered 6 exits: *Fac x4 / *Low x2) -6/Lower Caves -6/Lower Caves (discovered 2 exits: Fac / *Dat) -6/Data Miner -5/Proximity Caves -5/Factory (discovered 2 exits: Upp x2) -5/Waste -5/Factory (discovered 2 exits: *Upp x2) -5/Upper Caves -5/Upper Caves (discovered 2 exits: Fac / *Zhi) -5/Zhirov -4/Proximity Caves -4/Factory (discovered 4 exits: Res x4) -4/Waste -4/Factory (discovered 5 exits: Res / *Upp x2 / Ext x2) -4/Upper Caves -4/Upper Caves (discovered 2 exits: *Res / *War) -4/Warlord -3/Proximity Caves -3/Research (discovered 4 exits: Res / Arm / *Qua x2) -3/Quarantine -2/Research (discovered 3 exits: [*Acc] / *Tes x2) -2/Testing (discovered 3 exits: [*Acc] / [*Sec] / *Frg) -2/Protoforge 0bPrime History --------- Turn | Location | Event 7 | -11/Scrapyard | Discovered new exit (range 16) 231 | -11/Scrapyard | Entered Materials 284 | -10/Materials | Discovered new exit (range 6) 300 | -10/Materials | Build established: Mutant 946 | -10/Materials | Discovered new exit (range 9) 1631 | -10/Materials | Discovered new exit (range 15) 1728 | -10/Materials | Learned location of Recycling (-8) 1811 | -10/Materials | Identified exit to Mines 1838 | -10/Materials | Identified exit to Subcaves 1838 | -10/Materials | Identified exit to Materials 1853 | -10/Materials | Learned location of 1 exit from Storage 1898 | -10/Materials | Learned 2 Storage zone layouts 1936 | -10/Materials | Learned Storage non-interactive machine intel 3663 | -10/Materials | Entered Mines 3865 | -10/Mines | A weapon hastily lodged in a ceiling crevice suddenly fell to the ground 3952 | -10/Mines | Deemed a non-threat by the Exiles lab entrance 3952 | -10/Mines | Discovered new exit (range 5) 4020 | -10/Mines | Learned Materials garrison access intel 4174 | -10/Mines | Met a Derelict who couldn't figure out how to use a Trap Extractor 4621 | -10/Mines | Assembled infested the area 4626 | -10/Mines | Assisted by a Guerilla fighting off Assembled 4720 | -10/Mines | Core integrity fell below 50% 4788 | -10/Mines | Entered Materials 4788 | -9/Materials | Evolved 2 slots: Propulsion x1, Utility x1 4789 | -9/Materials | Identified exit to Mines 5451 | -9/Materials | Central database locked down 6152 | -9/Materials | Build established: Scavenger-Mutant 6200 | -9/Materials | Discovered new exit (range 18) 6979 | -9/Materials | Discovered new exit (range 5) 7228 | -9/Materials | Learned location of 1 exit from Recycling 7263 | -9/Materials | Learned location of Zion (-7) 7286 | -9/Materials | Learned 4 Recycling zone layouts 7299 | -9/Materials | Loaded intel: 18 interactive machine locations 7301 | -9/Materials | Identified exit to Materials 7624 | -9/Materials | Entered Mines 7931 | -9/Mines | Received a Rocket Launcher from a helpful Derelict 8149 | -9/Mines | Learned 4 Materials zone layouts 8288 | -9/Mines | Assisted by bots powering up and referring to "LRC-V3" 8483 | -9/Mines | A Derelict revealed a hidden shortcut to a safe place 8967 | -9/Mines | Entered Materials 8967 | -8/Materials | Accompanied by 3 allies 8967 | -8/Materials | Evolved 2 slots: Utility x1, Weapon x1 8968 | -8/Materials | Identified exit to Factory 8968 | -8/Materials | Identified exit to Storage 8969 | -8/Materials | Loaded intel: 1 garrison access location 9288 | -8/Materials | Build established: Tank 9426 | -8/Materials | Lost 3 allies 9763 | -8/Materials | Build established: Skirmisher 9916 | -8/Materials | Garrison activated, responded to threat 10648 | -8/Materials | Identified exit to Garrison 10697 | -8/Materials | Discovered exit to Factory (range 12) 11574 | -8/Materials | Entered Storage 11575 | -8/Storage | Identified exit to Recycling 11577 | -8/Storage | Loaded intel: 37 non-interactive machine locations 11729 | -8/Storage | Assisted by bots powering up and referring to "LRC-V3" 11803 | -8/Storage | Learned location of Armory (-3) 11822 | -8/Storage | Met a pair of Derelict thieves 11905 | -8/Storage | Lost 10 allies 11951 | -8/Storage | Garrison activated, responded to threat 12284 | -8/Storage | Build established: Tank 12523 | -8/Storage | Used back door to open Recycling access 13040 | -8/Storage | Learned Factory emergency access door positions 13076 | -8/Storage | Learned location of 1 exit from Lower Caves 13104 | -8/Storage | Learned location of 1 exit from Lower Caves 13124 | -8/Storage | Learned Factory repair station intel 13133 | -8/Storage | Learned location of 2 exits from Factory 13154 | -8/Storage | Learned Factory emergency access door positions 13176 | -8/Storage | Discovered exit to Factory (range 5) 13185 | -8/Storage | Learned location of 1 exit from Extension 13226 | -8/Storage | Learned Factory scanalyzer intel 14098 | -8/Storage | Entered Recycling 14099 | -8/Recycling | Identified exit to Factory 14100 | -8/Recycling | Identified exit to Scraptown 15408 | -8/Recycling | Core integrity fell below 50% 15674 | -8/Recycling | Scanned before Scraplab entrance 15707 | -8/Recycling | Entered Scraplab 15756 | -8/Recycling | Entered Scraptown 15756 | -8/Scraptown | Accompanied by 4 allies 15756 | -8/Scraptown | System corruption cleaned by C-Scrubber 15960 | -8/Scraptown | Build established: Commander-Mutant 16004 | -8/Scraptown | Visited UFD Registry 16004 | -8/Scraptown | Registered with UFD as "Bulletcutter" 16053 | -8/Scraptown | Visited Research Penetration Think Tank 16272 | -8/Scraptown | Visited Sword Containment 16305 | -8/Scraptown | Visited Scrapoid Research Area 16344 | -8/Scraptown | Visited Analyses Database 16380 | -8/Scraptown | Visited Cartography Club 16609 | -8/Scraptown | Found Prototype Slashing Weapon 16609 | -8/Scraptown | Identified Companion Sword 16669 | -8/Scraptown | Visited DA-N13 Charitable Foundation 16678 | -8/Scraptown | Found DCF Scrap (27 items) 17047 | -8/Scraptown | Visited Junk Repository 17164 | -8/Scraptown | Discovered exit to Factory (range 11) 17736 | -8/Scraptown | Visited Science Testing Area 17785 | -8/Scraptown | Visited Observation Area 17805 | -8/Scraptown | Visited Cyclists 17841 | -8/Scraptown | Visited Symbiants 18064 | -8/Scraptown | Visited Bundlers 18282 | -8/Scraptown | Entered Cyclist Reading Room 18920 | -8/Scraptown | Discovered exit to Factory (range 3) 19464 | -8/Scraptown | Found Surveybot 17 Chip 19548 | -8/Scraptown | Found Deep Structural Scanner 19553 | -8/Scraptown | Learned 8 Research zone layouts 19553 | -8/Scraptown | Learned 16 Research zone layouts 19553 | -8/Scraptown | Learned 12 Lower Caves zone layouts 19553 | -8/Scraptown | Learned 16 Upper Caves zone layouts 19553 | -8/Scraptown | Learned location of 2 exits from Lower Caves 19553 | -8/Scraptown | Learned location of 1 exit from Lower Caves 19553 | -8/Scraptown | Learned 24 Upper Caves zone layouts 19553 | -8/Scraptown | Learned location of 1 exit from Upper Caves 19756 | -8/Scraptown | Visited Derelict Rescue Squad 19767 | -8/Scraptown | Found DRS Beacon 20259 | -8/Scraptown | Met Optimus 20259 | -8/Scraptown | Accepted into 0bPrime 20330 | -8/Scraptown | Entered Factory 20330 | -6/Factory | Evolved 4 slots: Propulsion x2, Utility x2 20331 | -6/Factory | Identified exit to Lower Caves 20333 | -6/Factory | Loaded intel: 6 repair station locations 20334 | -6/Factory | Loaded intel: 4 scanalyzer locations 20377 | -6/Factory | Identified exit to Factory 20391 | -6/Factory | Loaded intel: 8 recycling unit locations 20625 | -6/Factory | Fabricated Com. Particle Reactor (x1) 20785 | -6/Factory | Learned location of Protoforge (-2) 20825 | -6/Factory | Entered Lower Caves 20826 | -6/Lower Caves | Identified exit to Lower Caves 20925 | -6/Lower Caves | Build established: Hacker-Scout 20930 | -6/Lower Caves | Learned location of 1 exit from Factory 20935 | -6/Lower Caves | Acquired the password to a Derelict Tinkerer's latest research 20952 | -6/Lower Caves | Entered another Lower Caves area 20953 | -6/Lower Caves | Identified exit to Data Miner 20977 | -6/Lower Caves | Learned Factory stockpile data 20988 | -6/Lower Caves | Learned Factory terminal intel 21113 | -6/Lower Caves | Encountered a Warlord checkpoint 21428 | -6/Lower Caves | Entered Data Miner 21428 | -6/Data Miner | Discovered new exit (range 7) 21433 | -6/Data Miner | Met Data Miner 21440 | -6/Data Miner | Learned location of Section 7 (-2) 21440 | -6/Data Miner | Acquired the access code to Warlord's prototype stash 21441 | -6/Data Miner | Received God Mode back door access code from Data Miner 21446 | -6/Data Miner | Identified exit to Proximity Caves 21446 | -6/Data Miner | Entered Proximity Caves 21448 | -5/Proximity Caves | Activated DRS Beacon 21455 | -5/Proximity Caves | Lost 3 allies 21514 | -5/Proximity Caves | Spotter reported a threat 21532 | -5/Proximity Caves | Spotter reported a threat 21754 | -5/Proximity Caves | Spotter reported a threat 22179 | -5/Proximity Caves | Learned 4 Factory zone layouts 22203 | -5/Proximity Caves | Discovered exit to Factory (range 13) 22240 | -5/Proximity Caves | Attracted the attention of an 0b10 checkpoint 22240 | -5/Proximity Caves | Entered Factory 22240 | -5/Factory | Evolved 2 slots: Propulsion x1, Utility x1 22241 | -5/Factory | Identified exit to Upper Caves 22246 | -5/Factory | Loaded intel: 26 terminal locations 22282 | -5/Factory | Loaded intel: 8 recycling unit locations 22302 | -5/Factory | Incoming investigation squad redirected 22335 | -5/Factory | Manually triggered Chute Trap 22335 | -5/Factory | Sucked down chute 22335 | -5/Factory | Entered Waste 22337 | -5/Waste | Spotted C-40 Crusher 22347 | -5/Waste | Spotted C-40 Crusher 22356 | -5/Waste | Spotted C-40 Crusher 22359 | -5/Waste | Spotted C-40 Crusher 22387 | -5/Waste | Spotted C-40 Crusher 22389 | -5/Waste | Spotted C-40 Crusher 22457 | -5/Waste | Discovered new exit (range 13) 22463 | -5/Waste | Warlord forces began an assault 22516 | -5/Waste | Allies destroyed C-40 Crusher 22522 | -5/Waste | Allies destroyed C-40 Crusher 22530 | -5/Waste | Allies destroyed C-40 Crusher 22530 | -5/Waste | Allies destroyed C-40 Crusher 22572 | -5/Waste | Lost 10 allies 22635 | -5/Waste | Identified exit to Factory 22667 | -5/Waste | Entered Factory 22667 | -5/Factory | Accompanied by 8 allies 22888 | -5/Factory | Loaded intel: 8 recycling unit locations 22899 | -5/Factory | Lost 3 allies 22913 | -5/Factory | Incoming investigation squad redirected 22964 | -5/Factory | Incoming assault squad redirected 22968 | -5/Factory | Incoming assault squad redirected 22978 | -5/Factory | Entered Upper Caves 22979 | -5/Upper Caves | Identified exit to Upper Caves 23007 | -5/Upper Caves | Learned Factory machine intel 23012 | -5/Upper Caves | Learned Factory interactive machine intel 23046 | -5/Upper Caves | Encountered a Warlord checkpoint 23171 | -5/Upper Caves | Entered another Upper Caves area 23172 | -5/Upper Caves | Identified exit to Factory 23172 | -5/Upper Caves | Discovered new exit (range 103) 23461 | -5/Upper Caves | Identified exit to Zhirov 23534 | -5/Upper Caves | Entered Zhirov 23534 | -5/Zhirov | Discovered new exit (range 3) 23539 | -5/Zhirov | Met Zhirov 23543 | -5/Zhirov | Learned location of Quarantine (-3) 23543 | -5/Zhirov | Learned location of Testing (-2) 23543 | -5/Zhirov | Learned location of Command (-1) 23545 | -5/Zhirov | Zhirov requested help retrieving the SGEMP Prototype 23549 | -5/Zhirov | Found Alien Artifact 23549 | -5/Zhirov | Identified Integrated Dissipator 23549 | -5/Zhirov | Installed Integrated Dissipator, increased core heat dissipation (+20) 23555 | -5/Zhirov | Found Alien Artifact 23630 | -5/Zhirov | Identified exit to Proximity Caves 23648 | -5/Zhirov | Entered Proximity Caves 23742 | -4/Proximity Caves | Discovered exit to Factory (range 11) 23928 | -4/Proximity Caves | Entered Factory 23928 | -4/Factory | Evolved 2 slots: Propulsion x1, Utility x1 23929 | -4/Factory | Identified exit to Research 23930 | -4/Factory | Loaded intel: 321 machine locations 23931 | -4/Factory | Loaded intel: 56 interactive machine locations 24066 | -4/Factory | Allied Derelicts emerged from ambush trap array 24067 | -4/Factory | Loaded intel: 8 recycling unit locations 24245 | -4/Factory | Sucked down chute 24245 | -4/Factory | Entered Waste 24252 | -4/Waste | Spotted C-40 Crusher 24253 | -4/Waste | Spotted C-40 Crusher 24253 | -4/Waste | Spotted C-40 Crusher 24254 | -4/Waste | Spotted C-40 Crusher 24260 | -4/Waste | EMP discharged 24262 | -4/Waste | Spotted C-40 Crusher 24263 | -4/Waste | Discovered new exit (range 16) 24263 | -4/Waste | Spotted C-40 Crusher 24270 | -4/Waste | Met Warlord forces unprepared to attack 24292 | -4/Waste | Identified exit to Factory 24315 | -4/Waste | Allies destroyed C-40 Crusher 24334 | -4/Waste | Entered Factory 24334 | -4/Factory | Accompanied by 7 allies 24346 | -4/Factory | Lost 10 allies 24377 | -4/Factory | Discovered new exit (range 10) 24396 | -4/Factory | Identified exit to Upper Caves 24445 | -4/Factory | Identified exit to Extension 24455 | -4/Factory | Loaded intel: 8 recycling unit locations 24472 | -4/Factory | Build established: Hacker-Sprinter 24482 | -4/Factory | Entered Upper Caves 24482 | -4/Upper Caves | Accompanied by 6 allies 24546 | -4/Upper Caves | Learned Research stockpile data 24627 | -4/Upper Caves | Discovered new exit (range 6) 24627 | -4/Upper Caves | Learned 8 Research zone layouts 24643 | -4/Upper Caves | Identified exit to Upper Caves 24659 | -4/Upper Caves | Entered another Upper Caves area 24679 | -4/Upper Caves | Discovered exit to Research (range 5) 24698 | -4/Upper Caves | Learned Research garrison access intel 24830 | -4/Upper Caves | Discovered new exit (range 10) 24833 | -4/Upper Caves | Learned Research terminal intel 24852 | -4/Upper Caves | Identified exit to Warlord 24852 | -4/Upper Caves | Entered Warlord 24859 | -4/Warlord | System corruption cleaned by Quarantine Array 24937 | -4/Warlord | Visited the Vortex Lab 24938 | -4/Warlord | Found Prototype Energy Gun 24938 | -4/Warlord | Identified Vortex Rail 24948 | -4/Warlord | Warlord's base attacked by MAIN.C 24966 | -4/Warlord | Opened Warlord's prototype stash 24975 | -4/Warlord | Found Prototype Hackware 24975 | -4/Warlord | Identified Ghost Barrier 24979 | -4/Warlord | Found Prototype Device 24979 | -4/Warlord | Identified Thermal Barrier 24990 | -4/Warlord | Rebuked by Warlord 25298 | -4/Warlord | Warlord forces counterattacked 25395 | -4/Warlord | Spotted Striker 25623 | -4/Warlord | Warlord base infiltrated, sounded retreat 25650 | -4/Warlord | Found Prototype Device 25650 | -4/Warlord | Identified Exp. Shock Absorption System 25696 | -4/Warlord | Found Prototype Launcher 25696 | -4/Warlord | Identified Chain Missile Launcher 25702 | -4/Warlord | Found Prototype Ballistic Cannon 25702 | -4/Warlord | Identified Hvy. Autocannon 25713 | -4/Warlord | Spotted Executioner 25767 | -4/Warlord | Lost 23 allies 25795 | -4/Warlord | Spotted Striker 25797 | -4/Warlord | Spotted Striker 25798 | -4/Warlord | Discovered new exit (range 12) 25800 | -4/Warlord | Identified exit to Proximity Caves 25802 | -4/Warlord | Entered Proximity Caves 25822 | -3/Proximity Caves | Found DCF Scrap (12 items) 26430 | -3/Proximity Caves | Discovered exit to Research (range 5) 26468 | -3/Proximity Caves | Entered Research 26468 | -3/Research | Evolved 2 slots: Power x1, Propulsion x1 26469 | -3/Research | Identified exit to Armory 26470 | -3/Research | Identified exit to Quarantine 26470 | -3/Research | Identified exit to Research 26472 | -3/Research | Loaded intel: 23 terminal locations 26473 | -3/Research | Loaded intel: 4 garrison access locations 26479 | -3/Research | Loaded intel: 5 recycling unit locations 26544 | -3/Research | Entered Quarantine 26545 | -3/Quarantine | Forged Quantum Companion 26571 | -3/Quarantine | Found Alien Slashing Weapon 26571 | -3/Quarantine | Identified Sigix Broadsword 26867 | -3/Quarantine | Found Alien Artifact 26867 | -3/Quarantine | Identified Core Reset Matrix 26867 | -3/Quarantine | Identified Transdimensional Reconstructor 26867 | -3/Quarantine | Used Core Reset Matrix 26871 | -3/Quarantine | Detected hypermatrix surge 26871 | -3/Quarantine | Sensed 6 artifacts in vicinity 26892 | -3/Quarantine | Discovered exit to Research (range 6) 26897 | -3/Quarantine | Entered Research 26897 | -2/Research | Evolved 2 slots: Utility x2 26905 | -2/Research | Identified exit to Testing 26914 | -2/Research | Discovered new exit (range 6) 26963 | -2/Research | Entered Testing 27084 | -2/Testing | Destroyed PL-MD8G8TI5WJ 27090 | -2/Testing | Found Prototype Processor 27090 | -2/Testing | Identified Exp. Melee Analysis Suite 27092 | -2/Testing | Found Prototype Processor 27092 | -2/Testing | Identified Exp. Core Analyzer 27363 | -2/Testing | Found Prototype Device 27363 | -2/Testing | Identified 2N-1CE's Frost Array 27377 | -2/Testing | Discovered new exit (range 13) 27399 | -2/Testing | Spotted Fortress 27413 | -2/Testing | Discovered new exit (range 6) 27413 | -2/Testing | Discovered new exit (range 6) 27413 | -2/Testing | Identified exit to Protoforge 27441 | -2/Testing | Entered Protoforge 27442 | -2/Protoforge | Sensed 2 artifacts in vicinity 27470 | -2/Protoforge | Superfortress began startup sequence 27512 | -2/Protoforge | Discovered new exit (range 11) 27594 | -2/Protoforge | UFD initiated attack on Protoforge (Readiness: High) 27594 | -2/Protoforge | Loaded intel: 3 recycling unit locations 27634 | -2/Protoforge | Optimus greeted in Protoforge 27636 | -2/Protoforge | Spotted Decapitator 27651 | -2/Protoforge | Spotted EXE-6 27670 | -2/Protoforge | Found Exp. Armor Integrity Analyzer 27676 | -2/Protoforge | Forge Plexus network access discovered 27744 | -2/Protoforge | Fabricated Cmb. Linear Gravjet (x2) 27830 | -2/Protoforge | Spotted Executioner 27837 | -2/Protoforge | UFD reported confirmed Drillbomb installation 27879 | -2/Protoforge | Spotted Decapitator 27908 | -2/Protoforge | Lost 7 allies 27956 | -2/Protoforge | Build established: Scavenger-Sprinter 28178 | -2/Protoforge | Spotted Immortal 28180 | -2/Protoforge | Spotted Executioner 28201 | -2/Protoforge | Spotted Striker 28206 | -2/Protoforge | P-80 Master assimilated allied 02F68-D 28243 | -2/Protoforge | Spotted Striker 28270 | -2/Protoforge | Spotted Executioner 28270 | -2/Protoforge | Spotted Immortal 28275 | -2/Protoforge | Optimus attacked Superfortress 28307 | -2/Protoforge | Lost 13 allies 28392 | -2/Protoforge | Triborg destroyed during the operation 28392 | -2/Protoforge | Optimus emerged from Triborg 28392 | -2/Protoforge | Spotted Striker 28406 | -2/Protoforge | Spotted Striker 28439 | -2/Protoforge | Spotted Striker 28725 | -2/Protoforge | Spotted Striker 28725 | -2/Protoforge | Spotted Striker 28725 | -2/Protoforge | Spotted Striker 28728 | -2/Protoforge | Spotted Executioner 28734 | -2/Protoforge | Spotted Executioner 28771 | -2/Protoforge | Lost 6 allies 28975 | -2/Protoforge | Spotted Executioner 28979 | -2/Protoforge | Spotted Executioner 29013 | -2/Protoforge | Lost 6 allies 29126 | -2/Protoforge | Spotted Striker 29127 | -2/Protoforge | Spotted Executioner 29142 | -2/Protoforge | Found Exp. Core Analyzer 29147 | -2/Protoforge | Spotted Executioner 29147 | -2/Protoforge | Spotted Striker 29159 | -2/Protoforge | Lost 3 allies 29432 | -2/Protoforge | Build established: Scavenger-Scout 29436 | -2/Protoforge | Spotted Executioner 29623 | -2/Protoforge | Spotted Executioner 29652 | -2/Protoforge | Spotted Decapitator 29652 | -2/Protoforge | Spotted Decapitator 29652 | -2/Protoforge | Spotted Decapitator 29652 | -2/Protoforge | Spotted Decapitator 29652 | -2/Protoforge | Spotted Decapitator 29659 | -2/Protoforge | Spotted Immortal 29659 | -2/Protoforge | Spotted Immortal 29660 | -2/Protoforge | Spotted V817-v 29660 | -2/Protoforge | Spotted V039-n 29660 | -2/Protoforge | Spotted V130-f 29663 | -2/Protoforge | Spotted V629-g 29665 | -2/Protoforge | Found Cep. EMP Blanket Launcher 29666 | -2/Protoforge | Found Cep. EMP Blanket Launcher 30139 | -2/Protoforge | Found Cep. Zero-point Core 30163 | -2/Protoforge | Spotted Immortal 30163 | -2/Protoforge | Spotted Immortal 30167 | -2/Protoforge | Found Crosscalibrator 30178 | -2/Protoforge | Spotted Striker 30196 | -2/Protoforge | Spotted V889-o 30196 | -2/Protoforge | Found Cep. RG22 Armor 30207 | -2/Protoforge | Found Faulty Cep. RG22 Armor 30217 | -2/Protoforge | Found Cep. Reaction Jets 30219 | -2/Protoforge | Found Cep. Projectile Intercept Suite 30233 | -2/Protoforge | Destroyed Decapitator 30332 | -2/Protoforge | Scanned by Researcher 30344 | -2/Protoforge | Found Cep. Weapon Articulator 30352 | -2/Protoforge | Spotted V305-w 30355 | -2/Protoforge | Destroyed V305-w 30357 | -2/Protoforge | Found Unknown Launcher 30357 | -2/Protoforge | Identified Fusion Bomb Launcher 30367 | -2/Protoforge | Destroyed Decapitator 30399 | -2/Protoforge | Destroyed 7 combat bots 30432 | -2/Protoforge | Spotted Executioner 30455 | -2/Protoforge | Spotted Executioner 30577 | -2/Protoforge | Spotted Executioner 30607 | -2/Protoforge | Spotted Executioner 30609 | -2/Protoforge | Spotted Striker 30629 | -2/Protoforge | Build established: Scavenger-Sprinter 30744 | -2/Protoforge | Spotted Executioner 30745 | -2/Protoforge | Spotted Striker 30745 | -2/Protoforge | Spotted Executioner 30822 | -2/Protoforge | Spotted Executioner 30845 | -2/Protoforge | Spotted Executioner 30893 | -2/Protoforge | Spotted Striker 31023 | -2/Protoforge | Destroyed Decapitator 31025 | -2/Protoforge | Destroyed Decapitator 31073 | -2/Protoforge | Found Cep. Fieldthrust Drive 31081 | -2/Protoforge | Destroyed 8 combat bots 31273 | -2/Protoforge | Found Femtoactuators 31291 | -2/Protoforge | Spotted Hotshot 31291 | -2/Protoforge | Spotted Hotshot 31291 | -2/Protoforge | Spotted Decapitator 31291 | -2/Protoforge | Spotted Decapitator 31291 | -2/Protoforge | Spotted Decapitator 31291 | -2/Protoforge | Spotted Decapitator 31295 | -2/Protoforge | Found Cep. Antigrav Storage Unit 31393 | -2/Protoforge | Spotted Executioner 31394 | -2/Protoforge | Spotted Striker 31396 | -2/Protoforge | Found UFD Drillbomb 31434 | -2/Protoforge | Spotted Decapitator 31434 | -2/Protoforge | Spotted Decapitator 31434 | -2/Protoforge | Spotted Decapitator 31434 | -2/Protoforge | Spotted V180-e 31442 | -2/Protoforge | Found Cep. Plasma Driver 31450 | -2/Protoforge | Destroyed Striker 31459 | -2/Protoforge | Spotted Striker 31459 | -2/Protoforge | Spotted Executioner 31510 | -2/Protoforge | Installed UFD Drillbomb at designated target 31510 | -2/Protoforge | UFD reported confirmed Drillbomb installation 31612 | -2/Protoforge | Spotted Executioner 31628 | -2/Protoforge | Found UFD Drillbomb 31652 | -2/Protoforge | Spotted Striker 31666 | -2/Protoforge | Spotted Striker 31670 | -2/Protoforge | Spotted Striker 31671 | -2/Protoforge | Spotted Executioner 31671 | -2/Protoforge | Spotted Executioner 31678 | -2/Protoforge | Spotted Executioner 31699 | -2/Protoforge | Spotted Striker 31702 | -2/Protoforge | Spotted Hotshot 31703 | -2/Protoforge | Spotted Hotshot 31714 | -2/Protoforge | Destroyed Striker 31721 | -2/Protoforge | Destroyed Hotshot 31726 | -2/Protoforge | Destroyed Hotshot 31734 | -2/Protoforge | Spotted Executioner 31737 | -2/Protoforge | Installed UFD Drillbomb at designated target 31737 | -2/Protoforge | UFD reported confirmed Drillbomb installation 31742 | -2/Protoforge | Lost 7 allies 31770 | -2/Protoforge | Found UFD Drillbomb 31807 | -2/Protoforge | Installed UFD Drillbomb at designated target 31807 | -2/Protoforge | UFD reported confirmed Drillbomb installation 31820 | -2/Protoforge | Found UFD Drillbomb 31831 | -2/Protoforge | Found UFD Drillbomb 31883 | -2/Protoforge | Installed UFD Drillbomb at designated target 31883 | -2/Protoforge | UFD reported confirmed Drillbomb installation 31887 | -2/Protoforge | Spotted Hotshot 31887 | -2/Protoforge | Spotted Hotshot 31891 | -2/Protoforge | Spotted Hotshot 31891 | -2/Protoforge | Spotted Hotshot 31892 | -2/Protoforge | Destroyed Hotshot 31897 | -2/Protoforge | Destroyed Hotshot 31909 | -2/Protoforge | Installed UFD Drillbomb at designated target 31909 | -2/Protoforge | UFD reported confirmed Drillbomb installation 31925 | -2/Protoforge | Core integrity fell below 50% 31958 | -2/Protoforge | Destroyed Hotshot 32013 | -2/Protoforge | Destroyed Hotshot 32031 | -2/Protoforge | Spotted Executioner 32070 | -2/Protoforge | Found UFD Drillbomb 32071 | -2/Protoforge | Found UFD Drillbomb 32093 | -2/Protoforge | Spotted Executioner 32097 | -2/Protoforge | Spotted Executioner 32100 | -2/Protoforge | Spotted Executioner 32146 | -2/Protoforge | Installed UFD Drillbomb at designated target 32146 | -2/Protoforge | UFD reported confirmed Drillbomb installation 32168 | -2/Protoforge | Installed UFD Drillbomb at designated target 32168 | -2/Protoforge | UFD reported confirmed Drillbomb installation 32256 | -2/Protoforge | Spotted Executioner 32289 | -2/Protoforge | Spotted Executioner 32340 | -2/Protoforge | Found UFD Drillbomb 32344 | -2/Protoforge | Found UFD Drillbomb 32347 | -2/Protoforge | Spotted Executioner 32356 | -2/Protoforge | Spotted Executioner 32399 | -2/Protoforge | Spotted Executioner 32425 | -2/Protoforge | Spotted Executioner 32467 | -2/Protoforge | Lost 8 allies 32539 | -2/Protoforge | Spotted Striker 32539 | -2/Protoforge | Spotted Striker 32539 | -2/Protoforge | Spotted Striker 32544 | -2/Protoforge | Spotted Striker 32630 | -2/Protoforge | Spotted Executioner 32682 | -2/Protoforge | Spotted Executioner 32682 | -2/Protoforge | Spotted Executioner 32682 | -2/Protoforge | Spotted Striker 33215 | -2/Protoforge | Spotted Striker 33246 | -2/Protoforge | Spotted Executioner 33682 | -2/Protoforge | Spotted Executioner 33682 | -2/Protoforge | Spotted Executioner 33991 | -2/Protoforge | Installed UFD Drillbomb at designated target 33991 | -2/Protoforge | UFD reported confirmed Drillbomb installation 34118 | -2/Protoforge | Installed UFD Drillbomb at designated target 34118 | -2/Protoforge | UFD reported confirmed Drillbomb installation 34119 | -2/Protoforge | UFD began Drillbomb countdown 34177 | -2/Protoforge | Spotted Striker 34177 | -2/Protoforge | Spotted Executioner 34219 | *** | Defending 0bPrime! Last Messages --------------- 34211_ 0bP_NET: But with it we will not only rebuild, we will wrest full control over 0b1 for ourselves! 34212_ 0bP_NET: What better way to punctuate our success than a blaze of glory, directed away from ourselves, of course. 34213_ 0bP_NET: Time for our final countdown to an explosive victory... 34214_ 0bP_NET: 5! 34214_ Slug penetrates 02FAA-K. 34215_ 0bP_NET: 4! 34215_ 02FAA-K suffers critical hit (Destroy). 34216_ 0bP_NET: 3! 34217_ 0bP_NET: If you're in the wrong place at the wrong time, the wrong time being in just a moment, I'm sorry but prepare to die. 34217_ Slug penetrates 02FAA-K. 34218_ 0bP_NET: Otherwise, enjoy the show! 34218_ Slug penetrates 02FAA-K. [Achievement: Robotopia] Map ----- +----------------------------------------------------+ | """""""""""""""%%%%%[==%% "#"" ""#????? | | """"""""""""""""%%*%%%[ "% % " ###"F ""###????? | | """""""""""""""""%[*[%%%%% "#?#"""""#??????? | | """""""""""""""""%%%=!%[[=!" #?#"""""#??????? | | """""""""""""""""%%%%!%%!%%% "#?#######??????? | | """"""""""""""""""%%%=%%% %%*% #??????????????? | | """"""""""""""""""%%%%%%%"" "" #??????????????? | | """"""""""""""""""%%% % % % "#??????????????? | | """"""""""""""""""% =%%%%% " #??????????????? | | """"""""""""""""""%%%% %%%% #??????????????? | | """"""""""""""""""%%%!%%% ##?????????????? | | """""""""""""""""" %!%%%%% %#?????????????? | | """"""""""""""""""%!! SS " % #?????????????? | | """""""""""""""""" % SS%% % ##?????????????? | | """"""""""""""""" %%"SS% % #??????????????? | | """""""""""""""""% %"SS %% #??????????????? | | """"""""""""""""" %%%%%% % % #??????????????? | | """""""""""""""" % % #??????????????? | | """"""""""""""" %""% % % % %"" #??????????????? | | """"""""""""""% % % |" "%"" #??????????????? | | """"""""""""" % % % / % "SS "" #??????????????? | | """""""""""" % % " "SS"" #??????????????? | | """"""""""" %" %% " %s #??????????????? | | """""""" %% % % "" #??????????????? | | %%%%%![ "" " " %% %" #??????????????? | | %%%%% !=% %%" " @ " #??????????????? | | %%%%%!* " = " """"E###????????????? | | %% %%%% "% % % SS" """ "EEE<#????????????? | | % %% %%s s " A<<#????????????? | | % % % % % <<#????????????? | | % " "" """" <<#????????????? | | %% % % " " "" <<#????????????? | | % % % % % " "" ""